{"text_format":"1","workbook":"xlsx","n_sheets":11,"sheets":["お願い","下請工事検査書式（1）","下請工事検査書式（2）","ﾃﾞｰﾀ入力","稟議書（印刷）","内訳","変更内訳","注文書","請書","注文書 (変更用)","請書 (変更用)"],"not_rendered":{"charts":0,"images":0,"macros":0,"external_links":2,"defined_names":58,"comments":3,"pivot_tables":0},"unopened":[],"bounds":{"document_bytes":16777216,"sheet_cells":100000,"rows_first":2000,"rows_last":500,"rows_between":2000,"halvings":0,"cell_chars":16384,"cell_head_chars":4096},"cells_cut":0,"cells_raw":0,"read":"whole","date_system":"1900"}

{"sheet":"お願い","index":0,"n_rows":33,"n_cols":12,"rows_kept":33,"cut":false,"hidden":false,"merged":[]}
[null,"稟議書変更のお知らせ"]
[]
[null,"書類の流れ"]
[null,null,null,"現場",null,"社長",null,null,null,null,null,"総務"]
[]
[null,null,null,"稟議書の表紙","→","パソコンで打って社長にメールをする",null,null,null,null,"→","総務"]
[null,null,null,"内訳",null,"※（決済前に）"]
[null,null,null,"外注特記"]
[]
[null,null,null,"稟議書の表紙","→","出力して社長に決済",null,null,null,null,"→","総務"]
[null,null,null,"下請けの見積書",null,"（内訳等をメールで確認しながら）"]
[]
[null,"稟議書受付の締め切り　・　・　・",null,null,"払い月の前月２５日を稟議書受付の締め切りとさせて下さいますよう、"]
[null,null,null,null,"よろしくお願いします。遅れますと総務での社長決裁が間に合わず、"]
[null,null,null,null,"取引先への支払いが来月になります。"]
[]
[null,"稟議書作成についてのお願い"]
[]
[null,"※","「ﾃﾞｰﾀ入力」ｼｰﾄから「稟議書」ｼｰﾄへﾃﾞｰﾀが飛ぶ様になっています。"]
[]
[null,"ﾃﾞｰﾀ入力","一番はじめに入力して下さい。稟議書の表紙のﾃﾞｰﾀです。",null,null,null,null,null,"左側は必須項目"]
[]
[null,"内訳","行を挿入したい場合は既にある行をコピーして挿入してください。"]
[null,null,"金額欄に数式があり、単価と数量が入らないと表示されません。"]
[]
[null,"変更稟議書の内訳・・・・",null,null,"基本的には普通の内訳と同じ書式が守られていれば"]
[null,null,null,null,"上段下段、列を増やすなど各人が今まで出してきた様式で構いません。"]
[null,null,null,null,"変更範囲が少ない場合、変更分内訳抜粋としてそこだけの明細を書き、"]
[null,null,"これは変更内訳で必須→",null,"変更前契約額、変更後契約額、差額、消費税、差額計を"]
[null,null,null,null,"最後に入れておいてください。"]
[]
[]
[null,"外注特記","はじめに「なし」などと入力してあります。上書きしてください。"]

{"sheet":"下請工事検査書式（1）","index":1,"n_rows":44,"n_cols":4,"rows_kept":44,"cut":false,"hidden":false,"merged":[[6,2,6,8]]}
[]
[]
[null,null,"協力業者　各位"]
[]
[]
[]
[null,null,"下請工事の完成通知と検査・引取について"]
[]
[]
[]
[null,null,"　平素お世話になっております。"]
[]
[null,null,"このたび、役所指導により、下請工事の完成通知と検査・引取について、"]
[]
[null,null,"書面により一連の経過を整理することといたしますのでご協力をお願いいたします。"]
[]
[]
[]
[null,null,"１）","完成・引渡通知書に必要事項記載の上、ご提出ください。"]
[]
[null,null,"・","表中の「完成期限」は、契約工期、"]
[null,null,null,"「完成年月日」は実際に完成した期日をご記入ください。"]
[null,null,null,"「完成年月日」は「完成期限」より以前になるようご留意ください。"]
[]
[null,null,"・","「通知年月日」は「完成年月日」と同一か、"]
[null,null,null,"もしくはそれ以後になるようご留意ください。"]
[]
[null,null,"2）","完成・引渡通知書を受領の後、弊社にて完成検査を行い、"]
[null,null,null,"「合格・引取通知書」を発行いたします。"]
[]
[null,null,"3)","「合格・引取通知書」を発行する際、"]
[null,null,null,"先に受領した「完成・引渡通知書」を返送いたします。"]
[null,null,null,"「引渡年月日」記載の後、改めてご提出ください。"]
[]
[null,null,"・","「引渡年月日」は「完成期限」と同一か、"]
[null,null,null,"もしくはそれ以前になるようご留意ください。"]
[]
[null,null,"4)","工事が小規模で検査から引取までの手続きを短時日にて完了する場合、"]
[null,null,null,"事前に御社にて押印の上で「完成・引渡通知書」をご持参ください。"]
[null,null,null,"検査の上、それぞれの年月日を手書きにて記入し、"]
[null,null,null,"完成書類として取り扱います。"]
[]
[null,null,"※","遅くとも、請求書との同封にてご提出ください。"]
[null,null,null,"一連の書類の完成を持って、代金支払い手続きに移行いたします。"]

{"sheet":"下請工事検査書式（2）","index":2,"n_rows":127,"n_cols":12,"rows_kept":127,"cut":false,"hidden":false,"merged":[[27,2,27,3],[51,7,51,9],[65,2,65,4],[27,4,27,8],[24,2,24,3],[24,4,24,8],[25,2,25,3],[25,4,25,8],[2,3,3,7],[8,1,8,3],[11,2,11,9],[14,7,14,9],[26,2,26,3],[26,4,26,8],[89,2,89,8],[28,2,28,3],[28,4,28,8],[29,2,30,3],[29,4,30,8],[79,2,79,3],[79,4,79,8],[54,1,54,3],[56,6,56,8],[58,7,58,8],[80,2,81,3],[80,4,81,8],[77,2,77,3],[76,4,76,8],[76,2,76,3],[77,4,77,8],[78,2,78,3],[78,4,78,8],[39,7,39,9],[35,2,35,9],[48,3,49,7]]}
[]
[]
[null,null,null,"完成・引渡通知書"]
[]
[]
[]
[]
[]
[null,"        勝 井 建 設 株 式 会 社    ",null,null,"殿"]
[]
[]
[null,null,"　下記の工事を完成いたしましたので、個別工事下請契約約款第２７条に基づき"]
[]
[null,null,"通知いたします。"]
[null,null,null,null,null,null,"通知年月日",{"$f":"E29","v":"令和　 　　年 　 　月　  　日"}]
[]
[null,null,null,null,null,null,"請負者"]
[]
[null,null,null,null,null,null,null,null,null,"㊞"]
[]
[null,null,null,null,null,"記"]
[]
[]
[]
[null,null,"工　事　名　称",null,{"$f":"ﾃﾞｰﾀ入力!B6","v":0}]
[null,null,"工　事　種　別",null,{"$f":"ﾃﾞｰﾀ入力!B15","v":0}]
[null,null,"完　成　期　限",null,{"$f":"IF(ﾃﾞｰﾀ入力!B12=0,ﾃﾞｰﾀ入力!B10,ﾃﾞｰﾀ入力!B12)","v":"00:00:00"}]
[null,null,"請負代金の額",null,{"$f":"\"\\\"&+TEXT(IF(ﾃﾞｰﾀ入力!B22=0,ﾃﾞｰﾀ入力!B16,ﾃﾞｰﾀ入力!B19)*1.1,\"#,##0\")&+\"－（税込）\"","v":"\\0－（税込）"}]
[null,null,"完 成 年 月 日",null,"令和　 　　年 　 　月　  　日"]
[null,null,"備　　　　　　考"]
[]
[]
[]
[]
[]
[null,null,"　上記の工事について、貴社の完成検査に合格しましたので、"]
[]
[null,null,"これを引き渡します。"]
[]
[null,null,null,null,null,null,"引渡年月日",{"$f":"E29","v":"令和　 　　年 　 　月　  　日"}]
[]
[null,null,null,null,null,null,"請負者"]
[]
[null,null,null,null,null,null,null,null,null,"㊞"]
[]
[]
[]
[]
[null,null,null,"合格・引取通知書"]
[]
[]
[null,null,null,null,null,null,null,"平成　 　　年 　 　月　  　日"]
[]
[]
[null,{"$f":"ﾃﾞｰﾀ入力!B14","v":0},null,null,"殿"]
[]
[null,null,null,null,null,null,"勝　井　建　設　株　式　会　社"]
[]
[null,null,null,null,null,null,"現場代理人",null,null,"㊞"]
[]
[]
[]
[]
[null,null,"　下記の工事は、"]
[]
[null,null,"平成　 　　年 　 　月　  　日",null,null,"に完成検査を行った結果、"]
[]
[null,null,"合格","と判定しましたので、これを引き取ることを通知いたします。",null,null,null,null,null,null,null,"合格"]
[null,null,null,null,null,null,null,null,null,null,null,"不合格"]
[]
[]
[]
[null,null,null,null,null,"記"]
[]
[]
[]
[null,null,"工　事　名　称",null,{"$f":"E$25","v":0}]
[null,null,"工　事　種　別",null,{"$f":"E$26","v":0}]
[null,null,"完 成 年 月 日",null,{"$f":"E$29","v":"令和　 　　年 　 　月　  　日"}]
[null,null,"請負代金の額",null,{"$f":"E$28","v":"\\0－（税込）"}]
[null,null,"備　　　　　　考"]
[]
[]
[]
[]
[null,null,"協力業者　各位"]
[]
[]
[]
[null,null,"下請工事の完成通知と検査・引取について"]
[]
[]
[]
[null,null,"　平素お世話になっております。"]
[]
[null,null,"このたび、役所指導により、下請工事の完成通知と検査・引取について、"]
[]
[null,null,"書面により一連の経過を整理することといたしますのでご協力をお願いいたします。"]
[]
[]
[]
[null,null,"１）","完成・引渡通知書に必要事項記載の上、ご提出ください。"]
[]
[null,null,"・","表中の「完成期限」は、契約工期、"]
[null,null,null,"「完成年月日」は実際に完成した期日をご記入ください。"]
[null,null,null,"「完成年月日」は「完成期限」より以前になるようご留意ください。"]
[]
[null,null,"・","「通知年月日」は「完成年月日」と同一か、"]
[null,null,null,"もしくはそれ以後になるようご留意ください。"]
[]
[null,null,"2）","完成・引渡通知書を受領の後、弊社にて完成検査を行い、"]
[null,null,null,"「合格・引取通知書」を発行いたします。"]
[]
[null,null,"3)","「合格・引取通知書」を発行する際、"]
[null,null,null,"先に受領した「完成・引渡通知書」を返送いたします。"]
[null,null,null,"「引渡年月日」記載の後、改めてご提出ください。"]
[]
[null,null,"・","「引渡年月日」は「完成期限」と同一か、"]
[null,null,null,"もしくはそれ以前になるようご留意ください。"]
[]
[null,null,"4)","工事が小規模で検査から引取までの手続きを短時日にて完了する場合、"]
[null,null,null,"事前に御社にて押印の上で「完成・引渡通知書」をご持参ください。"]
[null,null,null,"検査の上、それぞれの年月日を手書きにて記入し、"]
[null,null,null,"完成書類として取り扱います。"]
[]
[null,null,"※","遅くとも、請求書との同封にてご提出ください。"]
[null,null,null,"一連の書類の完成を持って、代金支払い手続きに移行いたします。"]

{"sheet":"ﾃﾞｰﾀ入力","index":3,"n_rows":57,"n_cols":6,"rows_kept":57,"cut":false,"hidden":false,"merged":[]}
["提出年月日"]
["作 業 所 名",null,null,"試験・検査の方法"]
["作業所長名",null,null,"下請先・工場検査"]
[null,null,null,"時期・回数・方法"]
["発　注　者",null,null,"安全協力会費の徴収",null,"基本的に有です。"]
["工 事 名 称",null,null,"その他指定工法・特許・ＩＳＯの適用等"]
["施 工 場 所"]
[]
["当初又は現工期　自"]
["当初又は現工期　至",null,"〒",{"$f":"INDEX([1]!漢字キー,MATCH($B$14,[2]コード!$C$2:$C$29999,0),4)","v":{"$error":"#N/A"}}]
["変更工期　　自",null,"住所",{"$f":"INDEX([1]!漢字キー,MATCH($B$14,[2]コード!$C$2:$C$29999,0),3)","v":{"$error":"#N/A"}}]
["変更工期　　至"]
[]
["会　社　名",null,"←正式名称を入力。（株）、（有）など略さず、株式会社・有限会社と入力してください。"]
["工　　　　種",null,"←増減変更は当初契約工事名に（増額）（減額）をつけてください。"]
["工事価格（税抜）"]
["当該予算額"]
["差　　　額",{"$f":"B17-B16","v":0}]
["変更工事価格（税抜）"]
["変更当該予算額"]
["変更差額",{"$f":"B20-B19","v":0}]
["変更増・減額",{"$f":"IF(B19=\"\",0,B19-B16)","v":0}]
["期日現金払",null,"％"]
["手　　　形",null,"％","←変更契約は前契約を引継いで下さい　分からなければ総務へ"]
["現　　　金",null,"％"]
["サ　イ　ト",null,"日","←すべて１２０日"]
["支 払 条 件",null,null,"←毎月出来高払い＝１、  完成一括払＝２"]
[]
["工事を施工しない日・時間帯の定め",null,null,"←有、無"]
["日",null,null,"←曜日等"]
["時間帯"]
[]
["契約不適合責任期間",null,null,"←有、無"]
["工事引き渡し後",null,"年間","←変更契約は前契約を引継いでください。"]
["日付入力→",null,"まで"]
[]
[null,null,null,"収入印紙について"]
["印紙額→",{"$f":"IF(B16>50000000,30000,IF(B16>10000000,10000,IF(B16>5000000,5000,IF(B16>3000000,1000,IF(B16>2000000,500,IF(B16>1000000,200,IF(B16>10000,200,IF(B16<0,200,0))))))))","v":0},null,"１万円未満","→","非課税"]
["変更印紙額→",{"$f":"IF(B22>50000000,30000,IF(B22>10000000,10000,IF(B22>5000000,5000,IF(B22>3000000,1000,IF(B22>2000000,500,IF(B22>1000000,200,IF(B22>10000,200,IF(B22<0,200,0))))))))","v":0}]
[null,null,null,"１万～１００万","→","２００円"]
[]
[null,null,null,"１０１万～２００万","→","２００円"]
[]
[null,null,null,"２０１万～３００万","→","５００円"]
[]
[null,null,null,"３０１万～５００万","→","千円"]
[]
[null,null,null,"５０１万～１千万","→","５千円"]
[]
[null,null,null,"リース","→","非課税"]
[null,null,null,"購入"]
[null,null,null,"材料の　　　　　　　加工"]
[null,null,null,"　〃　　　　　単価契約"]
[]
[null,null,null,"人件費、作業費＠","→","２００円"]
[null,null,null,"契約金額が記載されないもの"]
[null,null,null,"減額変更"]

{"sheet":"稟議書（印刷）","index":4,"n_rows":1014,"n_cols":69,"rows_kept":1014,"cut":false,"hidden":false,"merged":[[1012,33,1012,36],[1012,37,1012,46],[1013,33,1013,45],[985,33,986,45],[985,46,985,54],[986,46,986,54],[988,33,988,36],[988,37,988,54],[989,33,989,36],[989,38,989,40],[1011,33,1011,36],[1011,39,1011,44],[1011,47,1011,50],[1011,51,1011,54],[1008,33,1008,54],[1009,33,1009,54],[1010,33,1010,36],[1010,37,1010,46],[1010,47,1010,50],[1010,51,1010,54],[1004,33,1004,54],[1005,33,1005,54],[1006,33,1006,54],[1007,33,1007,54],[1002,33,1002,36],[1002,37,1002,46],[1002,47,1002,54],[1003,33,1003,35],[1003,36,1003,54],[1000,34,1000,46],[1000,48,1000,49],[1000,52,1000,53],[1001,33,1001,46],[1001,52,1001,53],[998,34,998,46],[998,48,998,49],[998,52,998,53],[999,34,999,46],[999,48,999,49],[999,52,999,53],[996,34,996,46],[996,48,996,49],[996,52,996,53],[997,34,997,46],[997,48,997,49],[997,52,997,53],[994,33,994,35],[994,36,994,54],[995,34,995,46],[995,47,995,54],[992,33,992,36],[992,37,992,42],[992,43,992,46],[992,47,992,54],[991,33,991,36],[991,37,991,42],[991,43,991,46],[991,47,991,54],[989,41,989,54],[990,33,990,36],[990,37,990,42],[990,43,990,46],[990,47,990,54],[611,59,611,68],[612,33,613,36],[612,50,613,55],[612,56,613,68],[608,33,611,34],[608,35,609,35],[611,36,611,39],[611,57,611,58],[609,59,609,68],[610,36,610,39],[610,57,610,58],[610,59,610,68],[608,36,609,39],[609,57,609,58],[608,40,608,68],[610,40,610,56],[956,33,956,58],[621,36,621,38],[616,37,617,56],[607,33,607,36],[607,37,607,49],[607,50,607,55],[607,56,607,63],[606,33,606,36],[606,37,606,49],[606,50,606,55],[606,56,606,68],[605,33,605,36],[605,37,605,49],[605,50,605,55],[605,56,605,68],[603,33,603,36],[603,37,603,49],[603,50,604,55],[603,57,603,68],[604,33,604,36],[604,37,604,49],[604,57,604,68],[601,33,601,40],[601,61,601,68],[602,33,602,36],[602,37,602,49],[602,50,602,55],[602,56,602,68],[596,65,596,68],[597,33,597,35],[597,36,597,45],[599,43,599,58],[599,62,599,63],[599,66,599,67],[572,65,572,68],[571,61,571,64],[572,33,572,34],[572,35,572,47],[572,51,572,58],[571,33,571,34],[571,35,571,47],[571,51,571,58],[572,61,572,64],[573,33,573,45],[573,46,573,47],[583,33,583,36],[595,33,595,35],[573,51,573,58],[579,50,580,55],[579,57,579,68],[580,33,580,36],[580,37,581,49],[570,33,570,34],[570,35,570,47],[570,51,570,57],[29,19,29,30],[23,4,23,31],[27,0,27,26],[28,0,28,35],[25,4,25,31],[26,0,26,3],[26,4,26,9],[26,10,26,14],[26,16,26,17],[26,19,26,24],[27,32,27,35],[23,32,23,35],[24,4,24,31],[26,25,26,26],[26,27,26,31],[26,32,26,35],[22,32,22,35],[20,0,20,4],[20,5,20,10],[20,11,20,20],[20,21,20,35],[19,0,19,4],[19,5,19,10],[567,61,567,68],[568,33,568,68],[21,0,21,8],[21,9,21,13],[21,14,21,16],[21,17,21,23],[21,24,21,26],[21,27,21,35],[22,4,22,31],[18,6,18,9],[18,10,18,35],[15,5,15,9],[17,6,17,9],[17,10,17,35],[12,26,12,27],[12,29,12,35],[19,11,19,18],[19,19,19,24],[19,25,19,29],[19,30,19,35],[14,14,14,17],[15,0,16,4],[16,5,16,9],[10,5,10,17],[13,0,13,4],[14,0,14,4],[13,6,13,13],[14,6,14,13],[11,30,11,35],[11,18,11,20],[10,18,10,20],[13,19,13,25],[13,26,13,27],[12,0,12,4],[12,6,12,13],[12,14,12,17],[12,19,12,25],[13,29,13,35],[14,18,14,35],[13,14,13,17],[10,0,10,4],[11,0,11,4],[11,5,11,17],[16,20,16,33],[15,20,15,33],[8,30,8,33],[11,22,11,27],[10,22,10,27],[10,30,10,35],[9,0,9,4],[9,5,9,17],[9,18,9,20],[9,21,9,35],[8,15,8,17],[8,18,8,20],[8,21,8,25],[8,26,8,29],[8,5,8,10],[8,11,8,14],[7,4,7,10],[8,0,8,4],[2,24,2,27],[2,28,2,31],[2,32,2,35],[0,1,0,11],[0,12,0,16],[983,23,983,24],[983,25,983,26],[983,27,983,28],[983,29,983,32],[983,0,983,2],[983,3,983,12],[983,13,983,16],[983,17,983,22],[982,23,982,24],[982,25,982,26],[982,27,982,28],[982,29,982,32],[982,0,982,2],[982,3,982,12],[982,13,982,16],[982,17,982,22],[981,23,981,24],[981,25,981,26],[981,27,981,28],[981,29,981,32],[981,0,981,2],[981,3,981,12],[981,13,981,16],[981,17,981,22],[980,23,980,24],[980,25,980,26],[980,27,980,28],[980,29,980,32],[980,0,980,2],[980,3,980,12],[980,13,980,16],[980,17,980,22],[979,23,979,24],[979,25,979,26],[979,27,979,28],[979,29,979,32],[979,0,979,2],[979,3,979,12],[979,13,979,16],[979,17,979,22],[978,23,978,24],[978,25,978,26],[978,27,978,28],[978,29,978,32],[978,0,978,2],[978,3,978,12],[978,13,978,16],[978,17,978,22],[977,23,977,24],[977,25,977,26],[977,27,977,28],[977,29,977,32],[977,0,977,2],[977,3,977,12],[977,13,977,16],[977,17,977,22],[976,23,976,24],[976,25,976,26],[976,27,976,28],[976,29,976,32],[976,0,976,2],[976,3,976,12],[976,13,976,16],[976,17,976,22],[975,23,975,24],[975,25,975,26],[975,27,975,28],[975,29,975,32],[975,0,975,2],[975,3,975,12],[975,13,975,16],[975,17,975,22],[974,23,974,24],[974,25,974,26],[974,27,974,28],[974,29,974,32],[974,0,974,2],[974,3,974,12],[974,13,974,16],[974,17,974,22],[973,23,973,24],[973,25,973,26],[973,27,973,28],[973,29,973,32],[973,0,973,2],[973,3,973,12],[973,13,973,16],[973,17,973,22],[972,23,972,24],[972,25,972,26],[972,27,972,28],[972,29,972,32],[972,0,972,2],[972,3,972,12],[972,13,972,16],[972,17,972,22],[971,23,971,24],[971,25,971,26],[971,27,971,28],[971,29,971,32],[971,0,971,2],[971,3,971,12],[971,13,971,16],[971,17,971,22],[970,23,970,24],[970,25,970,26],[970,27,970,28],[970,29,970,32],[970,0,970,2],[970,3,970,12],[970,13,970,16],[970,17,970,22],[969,23,969,24],[969,25,969,26],[969,27,969,28],[969,29,969,32],[969,0,969,2],[969,3,969,12],[969,13,969,16],[969,17,969,22],[968,23,968,24],[968,25,968,26],[968,27,968,28],[968,29,968,32],[968,0,968,2],[968,3,968,12],[968,13,968,16],[968,17,968,22],[967,23,967,24],[967,25,967,26],[967,27,967,28],[967,29,967,32],[967,0,967,2],[967,3,967,12],[967,13,967,16],[967,17,967,22],[966,23,966,24],[966,25,966,26],[966,27,966,28],[966,29,966,32],[966,0,966,2],[966,3,966,12],[966,13,966,16],[966,17,966,22],[965,23,965,24],[965,25,965,26],[965,27,965,28],[965,29,965,32],[965,0,965,2],[965,3,965,12],[965,13,965,16],[965,17,965,22],[964,23,964,24],[964,25,964,26],[964,27,964,28],[964,29,964,32],[964,0,964,2],[964,3,964,12],[964,13,964,16],[964,17,964,22],[963,23,963,24],[963,25,963,26],[963,27,963,28],[963,29,963,32],[963,0,963,2],[963,3,963,12],[963,13,963,16],[963,17,963,22],[961,23,961,28],[961,29,962,32],[962,23,962,24],[962,25,962,26],[962,27,962,28],[961,0,962,2],[961,3,962,12],[961,13,962,16],[961,17,962,22],[958,10,958,19],[958,20,958,22],[958,23,958,28],[958,29,958,30],[958,31,958,32],[957,0,958,9],[957,10,957,19],[957,20,957,22],[957,23,957,32],[578,33,578,36],[575,61,575,64],[578,56,578,68],[575,65,575,68],[582,33,582,36],[582,37,582,49],[576,33,576,56],[577,33,577,68],[581,50,581,55],[578,37,578,49],[578,50,578,55],[579,33,579,36],[582,50,582,55],[579,37,579,49],[583,50,583,55],[583,56,583,63],[583,37,583,49],[586,36,586,39],[586,57,586,58],[586,59,586,68],[582,56,582,68],[580,57,580,68],[581,33,581,36],[581,56,581,68],[590,61,590,68],[591,33,591,68],[592,65,592,68],[593,33,593,45],[593,65,593,68],[593,46,593,47],[595,36,595,45],[587,57,587,58],[587,59,587,68],[588,33,589,36],[588,50,589,55],[588,56,589,68],[584,33,587,34],[584,35,585,35],[584,36,585,39],[585,57,585,58],[585,59,585,68],[587,36,587,39],[584,40,584,68],[586,40,586,56],[634,36,634,67],[636,35,636,41],[637,36,637,37],[637,38,637,67],[622,36,622,47],[614,60,614,67],[615,60,615,63],[615,64,615,67],[616,60,616,63],[616,64,616,67],[619,60,619,63],[619,64,619,67],[631,36,631,67],[623,36,623,38],[624,36,624,47],[625,36,625,38],[626,36,626,38],[626,39,626,44],[640,56,640,67],[690,36,691,67],[695,36,695,67],[696,37,696,67],[641,35,641,41],[642,36,642,42],[643,36,643,67],[644,36,644,67],[646,35,646,37],[647,36,647,39],[648,35,648,44],[648,45,648,54],[648,55,648,57],[648,58,648,60],[648,61,648,67],[649,61,649,67],[650,35,650,44],[650,45,650,54],[650,55,650,57],[650,58,650,60],[650,61,650,67],[649,35,649,44],[649,55,649,57],[649,58,649,60],[720,35,720,37],[721,36,721,67],[709,35,709,41],[710,36,712,67],[715,36,715,67],[717,35,717,40],[718,36,718,67],[714,35,714,38],[722,56,722,63],[723,33,723,63],[725,33,725,35],[726,34,727,68],[746,34,746,63],[742,33,742,36],[737,33,737,37],[729,33,729,39],[730,34,730,63],[733,34,735,68],[732,33,732,36],[773,33,773,63],[738,34,740,68],[750,34,751,67],[753,33,753,35],[754,34,754,63],[747,33,747,63],[748,54,748,63],[749,33,749,39],[743,34,743,63],[745,33,745,35],[651,61,651,67],[652,35,652,44],[652,45,652,54],[652,55,652,57],[652,58,652,60],[652,61,652,67],[651,35,651,44],[651,45,651,54],[651,55,651,57],[651,58,651,60],[653,61,653,67],[654,35,654,44],[654,45,654,54],[654,55,654,57],[654,58,654,60],[654,61,654,67],[653,35,653,44],[653,45,653,54],[653,55,653,57],[653,58,653,60],[658,61,658,67],[659,61,659,67],[660,61,660,67],[661,35,661,44],[661,45,661,54],[661,55,661,57],[661,58,661,60],[661,61,661,67],[660,35,660,44],[660,45,660,54],[660,55,660,57],[660,58,660,60],[658,35,658,44],[658,45,658,54],[659,35,659,44],[659,45,659,54],[659,55,659,57],[659,58,659,60],[658,55,658,57],[658,58,658,60],[662,61,662,67],[663,35,663,44],[663,45,663,54],[663,55,663,57],[663,58,663,60],[663,61,663,67],[662,35,662,44],[662,45,662,54],[662,55,662,57],[662,58,662,60],[667,58,667,60],[669,36,669,68],[668,35,668,38],[671,35,671,36],[671,37,671,46],[671,47,671,48],[671,49,671,60],[664,61,664,67],[665,61,665,67],[665,35,665,44],[665,45,665,54],[665,55,665,57],[665,58,665,60],[664,35,664,44],[664,45,664,54],[664,55,664,57],[664,58,664,60],[666,55,666,57],[666,58,666,60],[666,61,666,67],[667,35,667,44],[667,45,667,54],[667,55,667,57],[675,37,675,46],[675,47,675,48],[675,49,675,60],[674,35,674,36],[674,37,674,46],[673,35,673,36],[674,47,674,48],[674,49,674,60],[670,35,670,36],[670,37,670,46],[670,47,670,48],[670,49,670,60],[705,35,705,38],[706,36,707,67],[697,37,698,67],[699,37,699,67],[700,37,700,67],[701,37,701,67],[703,36,703,67],[683,36,684,67],[667,61,667,67],[672,35,672,36],[672,37,672,46],[672,47,672,48],[672,49,672,60],[673,37,673,46],[673,47,673,48],[673,49,673,60],[689,35,689,40],[677,36,677,39],[678,37,678,67],[679,37,679,67],[680,37,680,67],[686,36,687,67],[681,37,681,67],[675,35,675,36],[3,38,7,41],[3,28,3,31],[3,32,3,35],[6,24,6,27],[6,28,6,31],[6,32,6,35],[3,24,3,27],[666,35,666,44],[666,45,666,54],[656,35,656,38],[657,36,657,41],[649,45,649,54],[640,38,640,53],[640,54,640,55],[633,35,633,40],[627,36,627,38],[627,39,627,44],[627,46,627,48],[627,50,627,55],[629,35,629,37],[630,36,630,67],[638,38,638,67],[639,36,639,37],[639,38,639,67]]}
[null,"外　　注　　契　　約　　稟　　議　　書",null,null,null,null,null,null,null,null,null,null,"（2001.１１.25）"]
[]
[null,null,null,null,null,null,null,null,null,null,null,null,null,null,null,null,null,null,null,null,null,null,null,null,"承　認",null,null,null,"確　認",null,null,null,"協議・審査"]
[null,null,null,null,null,null,null,null,null,null,null,null,null,null,null,null,null,null,null,null,null,null,null,null,"社　長",null,null,null,"担当部門長",null,null,null,"担当部長",null,null,null,{"$f":"ﾃﾞｰﾀ入力!B27","v":0},"←","ここへ支払い条件の番号1か2を入力してください。"]
[]
[]
[null,null,null,null,null,null,null,null,null,null,null,null,null,null,null,null,null,null,null,null,null,null,null,null,"．　　．",null,null,null,"．　　．",null,null,null,"．　　．"]
["提出年月日",null,null,null,{"$f":"ﾃﾞｰﾀ入力!B1","v":"00:00:00"}]
["発　 注 　者",null,null,null,null,{"$f":"ﾃﾞｰﾀ入力!B5","v":0},null,null,null,null,null,"工 事 科 目",null,null,null,null,null,null,"作 業 所 名",null,null,{"$f":"ﾃﾞｰﾀ入力!B2","v":0},null,null,null,null,"作業所長名",null,null,null,{"$f":"ﾃﾞｰﾀ入力!B3","v":0},null,null,null,"印"]
["工 事 名 称",null,null,null,null,{"$f":"ﾃﾞｰﾀ入力!B6","v":0},null,null,null,null,null,null,null,null,null,null,null,null,"工　　　　種",null,null,{"$f":"ﾃﾞｰﾀ入力!B15","v":"00:00:00"}]
["協力会社名",null,null,null,null,{"$f":"ﾃﾞｰﾀ入力!B14","v":0},null,null,null,null,null,null,null,null,null,null,null,null,"当初又は現工期",null,null,"自",{"$f":"ﾃﾞｰﾀ入力!B9","v":"00:00:00"},null,null,null,null,null,"～","至",{"$f":"ﾃﾞｰﾀ入力!B10","v":"00:00:00"}]
["施 工 場 所",null,null,null,null,{"$f":"ﾃﾞｰﾀ入力!B7","v":0},null,null,null,null,null,null,null,null,null,null,null,null,"変更工期",null,null,"自",{"$f":"ﾃﾞｰﾀ入力!B11","v":"00:00:00"},null,null,null,null,null,"～","至",{"$f":"ﾃﾞｰﾀ入力!B12","v":"00:00:00"}]
["当初工事価格（税抜）",null,null,null,null,"￥",{"$f":"ﾃﾞｰﾀ入力!B16","v":0},null,null,null,null,null,null,null,"当該予算額",null,null,null,"￥",{"$f":"ﾃﾞｰﾀ入力!$B$17","v":0},null,null,null,null,null,null,"差額",null,"￥",{"$f":"ﾃﾞｰﾀ入力!B18","v":0}]
["変更工事価格（税抜）",null,null,null,null,"￥",{"$f":"ﾃﾞｰﾀ入力!B19","v":0},null,null,null,null,null,null,null,"当該予算額",null,null,null,"￥",{"$f":"ﾃﾞｰﾀ入力!$B$20","v":0},null,null,null,null,null,null,"差額",null,"￥",{"$f":"ﾃﾞｰﾀ入力!B21","v":0}]
["増減額（税抜）",null,null,null,null,"￥",{"$f":"ﾃﾞｰﾀ入力!B22","v":0}]
["支 払 条 件",null,null,null,null,"① 毎月出来高払　",null,null,null,null,"　毎月25日締切　翌月20日支払",null,null,null,null,null,null,null,null,null,{"$f":"\"現金　 \"&+AK16&+\"％　手形 　\"&+AL16&\"％　期日現金払　\"&+AM16&\"％　（サイト \"&ﾃﾞｰﾀ入力!$B$26&\"日）\"","v":"現金　 0％　手形 　0％　期日現金払　0％　（サイト 日）"},null,null,null,null,null,null,null,null,null,null,null,null,null,null,null,{"$f":"ﾃﾞｰﾀ入力!$B$25","v":0},{"$f":"ﾃﾞｰﾀ入力!$B$24","v":0},{"$f":"ﾃﾞｰﾀ入力!$B$23","v":0}]
[null,null,null,null,null,"② 完成一括払",null,null,null,null,"　検収後月25日締切　翌月20日支払",null,null,null,null,null,null,null,null,null,{"$f":"\"現金　 \"&+AK17&+\"％　手形 　\"&+AL17&\"％　期日現金払　\"&+AM17&\"％　（サイト \"&ﾃﾞｰﾀ入力!$B$26&\"日）\"","v":"現金　 0％　手形 　0％　期日現金払　0％　（サイト 日）"},null,null,null,null,null,null,null,null,null,null,null,null,null,null,null,{"$f":"ﾃﾞｰﾀ入力!$B$25","v":0},{"$f":"ﾃﾞｰﾀ入力!$B$24","v":0},{"$f":"ﾃﾞｰﾀ入力!$B$23","v":0}]
[]
[]
["試験・検査の方法",null,null,null,null,{"$f":"ﾃﾞｰﾀ入力!E2","v":0},null,null,null,null,null,"下請先・工場検査の有無",null,null,null,null,null,null,null,{"$f":"ﾃﾞｰﾀ入力!E3","v":0},null,null,null,null,null,"時期・回数・方法",null,null,null,null,{"$f":"ﾃﾞｰﾀ入力!E4","v":0}]
["安全協力費の徴収",null,null,null,null,{"$f":"ﾃﾞｰﾀ入力!E5","v":0},null,null,null,null,null,"その他指定工法・特許・ＩＳＯの適用等",null,null,null,null,null,null,null,null,null,{"$f":"ﾃﾞｰﾀ入力!E6","v":0}]
["工事を施工しない日・時間帯の定め",null,null,null,null,null,null,null,null,{"$f":"IF(ﾃﾞｰﾀ入力!B29=\"\",\"\",ﾃﾞｰﾀ入力!B29)","v":""},null,null,null,null,"日",null,null,{"$f":"IF(J22=\"有\",IF(ﾃﾞｰﾀ入力!B30<>\"\",ﾃﾞｰﾀ入力!B30,\"\"),\"\")","v":""},null,null,null,null,null,null,"時間帯",null,null,{"$f":"IF(J22=\"有\",IF(ﾃﾞｰﾀ入力!B31<>\"\",ﾃﾞｰﾀ入力!B31,\"\"),\"\")","v":""}]
[null,null,null,null,null,null,null,null,null,null,null,null,null,null,null,null,null,null,null,null,null,null,null,null,null,null,null,null,null,null,null,null,"確　認"]
["特　記　事　項",null,null,null,null,null,null,null,null,null,null,null,null,null,null,null,null,null,null,null,null,null,null,null,null,null,null,null,null,null,null,null,"総務部長"]
[]
[]
["契約不適合　責任期間",null,null,null,{"$f":"ﾃﾞｰﾀ入力!B33","v":0},null,null,null,null,null,"工事引き渡し後",null,null,null,null,{"$f":"IF(E27=\"無\",\"\",ﾃﾞｰﾀ入力!B34)","v":0},"年間",null,null,{"$f":"IF(E27=\"無\",\"\",ﾃﾞｰﾀ入力!B35)","v":"00:00:00"},null,null,null,null,null,"まで",null,null,null,null,null,null,"．　　．"]
["作業所長　→　工事部　→　社長　→　総務部長",null,null,null,null,null,null,null,null,null,null,null,null,null,null,null,null,null,null,null,null,null,null,null,null,null,null,null,null,null,null,null,"<2020.10.02改定>"]
[]
[]
[]
[]
[]
[]
[]
[]
[]
[]
[]
[]
[]
[]
[]
[]
[]
[]
[]
[]
[]
[]
[]
[]
[]
[]
[]
[]
[]
[]
[]
[]
[]
[]
[]
[]
[]
[]
[]
[]
[]
[]
[]
[]
[]
[]
[]
[]
[]
[]
[]
[]
[]
[]
[]
[]
[]
[]
[]
[]
[]
[]
[]
[]
[]
[]
[]
[]
[]
[]
[]
[]
[]
[]
[]
[]
[]
[]
[]
[]
[]
[]
[]
[]
[]
[]
[]
[]
[]
[]
[]
[]
[]
[]
[]
[]
[]
[]
[]
[]
[]
[]
[]
[]
[]
[]
[]
[]
[]
[]
[]
[]
[]
[]
[]
[]
[]
[]
[]
[]
[]
[]
[]
[]
[]
[]
[]
[]
[]
[]
[]
[]
[]
[]
[]
[]
[]
[]
[]
[]
[]
[]
[]
[]
[]
[]
[]
[]
[]
[]
[]
[]
[]
[]
[]
[]
[]
[]
[]
[]
[]
[]
[]
[]
[]
[]
[]
[]
[]
[]
[]
[]
[]
[]
[]
[]
[]
[]
[]
[]
[]
[]
[]
[]
[]
[]
[]
[]
[]
[]
[]
[]
[]
[]
[]
[]
[]
[]
[]
[]
[]
[]
[]
[]
[]
[]
[]
[]
[]
[]
[]
[]
[]
[]
[]
[]
[]
[]
[]
[]
[]
[]
[]
[]
[]
[]
[]
[]
[]
[]
[]
[]
[]
[]
[]
[]
[]
[]
[]
[]
[]
[]
[]
[]
[]
[]
[]
[]
[]
[]
[]
[]
[]
[]
[]
[]
[]
[]
[]
[]
[]
[]
[]
[]
[]
[]
[]
[]
[]
[]
[]
[]
[]
[]
[]
[]
[]
[]
[]
[]
[]
[]
[]
[]
[]
[]
[]
[]
[]
[]
[]
[]
[]
[]
[]
[]
[]
[]
[]
[]
[]
[]
[]
[]
[]
[]
[]
[]
[]
[]
[]
[]
[]
[]
[]
[]
[]
[]
[]
[]
[]
[]
[]
[]
[]
[]
[]
[]
[]
[]
[]
[]
[]
[]
[]
[]
[]
[]
[]
[]
[]
[]
[]
[]
[]
[]
[]
[]
[]
[]
[]
[]
[]
[]
[]
[]
[]
[]
[]
[]
[]
[]
[]
[]
[]
[]
[]
[]
[]
[]
[]
[]
[]
[]
[]
[]
[]
[]
[]
[]
[]
[]
[]
[]
[]
[]
[]
[]
[]
[]
[]
[]
[]
[]
[]
[]
[]
[]
[]
[]
[]
[]
[]
[]
[]
[]
[]
[]
[]
[]
[]
[]
[]
[]
[]
[]
[]
[]
[]
[]
[]
[]
[]
[]
[]
[]
[]
[]
[]
[]
[]
[]
[]
[]
[]
[]
[]
[]
[]
[]
[]
[]
[]
[]
[]
[]
[]
[]
[]
[]
[]
[]
[]
[]
[]
[]
[]
[]
[]
[]
[]
[]
[]
[]
[]
[]
[]
[]
[]
[]
[]
[]
[]
[]
[]
[]
[]
[]
[]
[]
[]
[]
[]
[]
[]
[]
[]
[]
[]
[]
[]
[]
[]
[]
[]
[]
[]
[]
[]
[]
[]
[]
[]
[]
[]
[]
[]
[]
[]
[]
[]
[]
[]
[]
[]
[]
[]
[]
[]
[]
[]
[]
[]
[]
[]
[]
[]
[]
[]
[]
[]
[]
[]
[]
[]
[]
[]
[]
[]
[null,null,null,null,null,null,null,null,null,null,null,null,null,null,null,null,null,null,null,null,null,null,null,null,null,null,null,null,null,null,null,null,null,null,null,null,null,null,null,null,null,null,null,null,null,null,null,null,null,null,null,null,null,null,null,null,null,null,null,null,null,"購買－１１（2001.11.25）"]
[null,null,null,null,null,null,null,null,null,null,null,null,null,null,null,null,null,null,null,null,null,null,null,null,null,null,null,null,null,null,null,null,null,"注　　　　文　　　　書"]
[null,null,null,null,null,null,null,null,null,null,null,null,null,null,null,null,null,null,null,null,null,null,null,null,null,null,null,null,null,null,null,null,null,null,null,null,null,null,null,null,null,null,null,null,null,null,null,null,null,null,null,null,null,null,null,null,null,null,null,null,null,null,null,null,null,null,null,null,"平成　　　年　　　月　　　日"]
[null,null,null,null,null,null,null,null,null,null,null,null,null,null,null,null,null,null,null,null,null,null,null,null,null,null,null,null,null,null,null,null,null,"〒",null,null,null,null,null,null,null,null,null,null,null,null,null,null,null,null,null,"〒　７４０－００４４"]
[null,null,null,null,null,null,null,null,null,null,null,null,null,null,null,null,null,null,null,null,null,null,null,null,null,null,null,null,null,null,null,null,null,"住所",null,null,null,null,null,null,null,null,null,null,null,null,null,null,null,null,null,"岩国市大字通津２３９６番地",null,null,null,null,null,null,null,null,null,"確認、承認"]
[null,null,null,null,null,null,null,null,null,null,null,null,null,null,null,null,null,null,null,null,null,null,null,null,null,null,null,null,null,null,null,null,null,"会社名",null,null,null,null,null,null,null,null,null,null,null,null,null,null,null,null,null,"勝井建設株式会社",null,null,null,null,null,null,null,null,null,"総務部長",null,null,null,"作成"]
[null,null,null,null,null,null,null,null,null,null,null,null,null,null,null,null,null,null,null,null,null,null,null,null,null,null,null,null,null,null,null,null,null,null,null,null,null,null,null,null,null,null,null,null,null,null,"御中",null,null,null,null,"電　話　０８２７（３８）１２３１　代表"]
[]
[null,null,null,null,null,null,null,null,null,null,null,null,null,null,null,null,null,null,null,null,null,null,null,null,null,null,null,null,null,null,null,null,null,null,null,null,null,null,null,null,null,null,null,null,null,null,null,null,null,null,null,null,null,null,null,null,null,null,null,null,null,"．　　．",null,null,null,"．　　．"]
[null,null,null,null,null,null,null,null,null,null,null,null,null,null,null,null,null,null,null,null,null,null,null,null,null,null,null,null,null,null,null,null,null,"下記の通り注文しますので、お引き受けの際は、請書に記名、捺印の上、１０日以内に返送下さい。"]
[null,null,null,null,null,null,null,null,null,null,null,null,null,null,null,null,null,null,null,null,null,null,null,null,null,null,null,null,null,null,null,null,null,"請書に外注工事特記事項（物品納入特記事項）が添付されている場合は、請書と特記事項の合わせ目に割印を忘れずに押印して下さい。"]
[null,null,null,null,null,null,null,null,null,null,null,null,null,null,null,null,null,null,null,null,null,null,null,null,null,null,null,null,null,null,null,null,null,"工事名称",null,null,null,null,null,null,null,null,null,null,null,null,null,null,null,null,"契約番号"]
[null,null,null,null,null,null,null,null,null,null,null,null,null,null,null,null,null,null,null,null,null,null,null,null,null,null,null,null,null,null,null,null,null,"工事場所",null,null,null,null,null,null,null,null,null,null,null,null,null,null,null,null,"工期･納期",null,null,null,null,null,"自"]
[null,null,null,null,null,null,null,null,null,null,null,null,null,null,null,null,null,null,null,null,null,null,null,null,null,null,null,null,null,null,null,null,null,"工事種別",null,null,null,null,null,null,null,null,null,null,null,null,null,null,null,null,null,null,null,null,null,null,"至"]
[null,null,null,null,null,null,null,null,null,null,null,null,null,null,null,null,null,null,null,null,null,null,null,null,null,null,null,null,null,null,null,null,null,"又は物品名",null,null,null,null,null,null,null,null,null,null,null,null,null,null,null,null,"受渡条件",null,null,null,null,null,"施　　　工　　・　　納　　　入"]
[null,null,null,null,null,null,null,null,null,null,null,null,null,null,null,null,null,null,null,null,null,null,null,null,null,null,null,null,null,null,null,null,null,"金　　　　　額",null,null,null,null,null,null,null,null,null,null,null,null,null,null,null,null,"精算条件",null,null,null,null,null,"実　　　測　　・　　実　　　納"]
[null,null,null,null,null,null,null,null,null,null,null,null,null,null,null,null,null,null,null,null,null,null,null,null,null,null,null,null,null,null,null,null,null,"（消費税額）",null,null,null,"（内消費税￥　　　　　　　　　　　　　　　　　）",null,null,null,null,null,null,null,null,null,null,null,null,"瑕 疵 担 保 期 間",null,null,null,null,null,"　平成　　　年　　　月　　　日まで"]
[null,null,null,null,null,null,null,null,null,null,null,null,null,null,null,null,null,null,null,null,null,null,null,null,null,null,null,null,null,null,null,null,null,"支払条件",null,"①","出来高支払",null,null,null,"毎月末締切り、出来高相当額の９０％を翌月２０日に支払い。完了の上、残高を消費税額とともに支払う。"]
[null,null,null,null,null,null,null,null,null,null,null,null,null,null,null,null,null,null,null,null,null,null,null,null,null,null,null,null,null,null,null,null,null,null,null,null,null,null,null,null,null,null,null,null,null,null,null,null,null,null,null,null,null,null,null,null,null,"但し",null,"現金　　　％手形　　　％（サイト　　日）"]
[null,null,null,null,null,null,null,null,null,null,null,null,null,null,null,null,null,null,null,null,null,null,null,null,null,null,null,null,null,null,null,null,null,null,null,"②","納入･完成一括払",null,null,null,"検収月末締切り、検収相当額の１００％を翌月２０日に全額支払う。",null,null,null,null,null,null,null,null,null,null,null,null,null,null,null,null,"但し",null,"現金　　　％手形　　　％（サイト　　日）"]
[null,null,null,null,null,null,null,null,null,null,null,null,null,null,null,null,null,null,null,null,null,null,null,null,null,null,null,null,null,null,null,null,null,null,null,"③　","その他　",null,null,null,null,null,null,null,null,null,null,null,null,null,null,null,null,null,null,null,null,"但し",null,"現金　　　％手形　　　％（サイト　　日）"]
[null,null,null,null,null,null,null,null,null,null,null,null,null,null,null,null,null,null,null,null,null,null,null,null,null,null,null,null,null,null,null,null,null,"内容･内訳",null,null,null,"　別紙明細書の通り。",null,null,null,null,null,null,null,null,null,null,null,null,"特記事項",null,null,null,null,null,"注文書・請書に記載のない条件については、外注工事特記事項、物品納入特記事項に定めるところによる。"]
[]
[null,null,null,null,null,null,null,null,null,null,null,null,null,null,null,null,null,null,null,null,null,null,null,null,null,null,null,null,null,null,null,null,null,null,null,null,null,null,null,null,null,null,null,null,null,null,null,null,null,null,null,null,null,null,null,null,null,null,null,null,null,"購買－１２（2001.11.25）"]
[null,null,null,null,null,null,null,null,null,null,null,null,null,null,null,null,null,null,null,null,null,null,null,null,null,null,null,null,null,null,null,null,null,"請　　　　　　　　書"]
[null,null,null,null,null,null,null,null,null,null,null,null,null,null,null,null,null,null,null,null,null,null,null,null,null,null,null,null,null,null,null,null,null,null,null,null,null,null,null,null,null,null,null,null,null,null,null,null,null,null,null,null,null,null,null,null,null,null,null,null,null,null,null,null,null,"確認、承認"]
[null,null,null,null,null,null,null,null,null,null,null,null,null,null,null,null,null,null,null,null,null,null,null,null,null,null,null,null,null,null,null,null,null,"勝井建設株式会社",null,null,null,null,null,null,null,null,null,null,null,null,"御中",null,null,null,null,null,null,null,null,null,null,null,null,null,null,null,null,null,null,"総務部長"]
[]
[null,null,null,null,null,null,null,null,null,null,null,null,null,null,null,null,null,null,null,null,null,null,null,null,null,null,null,null,null,null,null,null,null,"住 所"]
[null,null,null,null,null,null,null,null,null,null,null,null,null,null,null,null,null,null,null,null,null,null,null,null,null,null,null,null,null,null,null,null,null,null,null,null,null,null,null,null,null,null,null,null,null,null,null,null,null,null,null,null,null,null,null,null,null,null,null,null,null,null,null,null,null,"．　　．"]
[null,null,null,null,null,null,null,null,null,null,null,null,null,null,null,null,null,null,null,null,null,null,null,null,null,null,null,null,null,null,null,null,null,"会 社 名"]
[]
[null,null,null,null,null,null,null,null,null,null,null,null,null,null,null,null,null,null,null,null,null,null,null,null,null,null,null,null,null,null,null,null,null,null,null,null,null,null,null,null,null,null,null,"下記の通りお請けします。",null,null,null,null,null,null,null,null,null,null,null,null,null,null,null,null,null,null,"印紙",null,null,null,"印紙"]
[]
[null,null,null,null,null,null,null,null,null,null,null,null,null,null,null,null,null,null,null,null,null,null,null,null,null,null,null,null,null,null,null,null,null,"平成　　　年　　　月　　　日",null,null,null,null,null,null,null,null,null,null,null,null,null,null,null,null,null,null,null,null,null,null,null,null,null,null,null,"（印紙税額は￥　　　　　　円です）"]
[null,null,null,null,null,null,null,null,null,null,null,null,null,null,null,null,null,null,null,null,null,null,null,null,null,null,null,null,null,null,null,null,null,"工事名称",null,null,null,null,null,null,null,null,null,null,null,null,null,null,null,null,"契約番号"]
[null,null,null,null,null,null,null,null,null,null,null,null,null,null,null,null,null,null,null,null,null,null,null,null,null,null,null,null,null,null,null,null,null,"工事場所",null,null,null,null,null,null,null,null,null,null,null,null,null,null,null,null,"工期･納期",null,null,null,null,null,"自"]
[null,null,null,null,null,null,null,null,null,null,null,null,null,null,null,null,null,null,null,null,null,null,null,null,null,null,null,null,null,null,null,null,null,"工事種別",null,null,null,null,null,null,null,null,null,null,null,null,null,null,null,null,null,null,null,null,null,null,"至"]
[null,null,null,null,null,null,null,null,null,null,null,null,null,null,null,null,null,null,null,null,null,null,null,null,null,null,null,null,null,null,null,null,null,"又は物品名",null,null,null,null,null,null,null,null,null,null,null,null,null,null,null,null,"受渡条件",null,null,null,null,null,"施　　　工　　・　　納　　　入"]
[null,null,null,null,null,null,null,null,null,null,null,null,null,null,null,null,null,null,null,null,null,null,null,null,null,null,null,null,null,null,null,null,null,"金　　　　　額",null,null,null,null,null,null,null,null,null,null,null,null,null,null,null,null,"精算条件",null,null,null,null,null,"実　　　測　　・　　実　　　納"]
[null,null,null,null,null,null,null,null,null,null,null,null,null,null,null,null,null,null,null,null,null,null,null,null,null,null,null,null,null,null,null,null,null,"（消費税額）",null,null,null,"（内消費税￥　　　　　　　　　　　　　　　　　）",null,null,null,null,null,null,null,null,null,null,null,null,"瑕 疵 担 保 期 間",null,null,null,null,null,"　平成　　　年　　　月　　　日まで"]
[null,null,null,null,null,null,null,null,null,null,null,null,null,null,null,null,null,null,null,null,null,null,null,null,null,null,null,null,null,null,null,null,null,"支払条件",null,"①","出来高支払",null,null,null,"毎月末締切り、出来高相当額の９０％を翌月２０日に支払い。完了の上、残高を消費税額とともに支払う。"]
[null,null,null,null,null,null,null,null,null,null,null,null,null,null,null,null,null,null,null,null,null,null,null,null,null,null,null,null,null,null,null,null,null,null,null,null,null,null,null,null,null,null,null,null,null,null,null,null,null,null,null,null,null,null,null,null,null,"但し",null,"現金　　　％手形　　　％（サイト　　日）"]
[null,null,null,null,null,null,null,null,null,null,null,null,null,null,null,null,null,null,null,null,null,null,null,null,null,null,null,null,null,null,null,null,null,null,null,"②","納入･完成一括払",null,null,null,"検収月末締切り、検収相当額の１００％を翌月２０日に全額支払う。",null,null,null,null,null,null,null,null,null,null,null,null,null,null,null,null,"但し",null,"現金　　　％手形　　　％（サイト　　日）"]
[null,null,null,null,null,null,null,null,null,null,null,null,null,null,null,null,null,null,null,null,null,null,null,null,null,null,null,null,null,null,null,null,null,null,null,"③　","その他　",null,null,null,null,null,null,null,null,null,null,null,null,null,null,null,null,null,null,null,null,"但し",null,"現金　　　％手形　　　％（サイト　　日）"]
[null,null,null,null,null,null,null,null,null,null,null,null,null,null,null,null,null,null,null,null,null,null,null,null,null,null,null,null,null,null,null,null,null,"内容･内訳",null,null,null,"　別紙明細書の通り。",null,null,null,null,null,null,null,null,null,null,null,null,"特記事項",null,null,null,null,null,"注文書・請書に記載のない条件については、外注工事特記事項、物品納入特記事項に定めるところによる。"]
[]
[null,null,null,null,null,null,null,null,null,null,null,null,null,null,null,null,null,null,null,null,null,null,null,null,null,null,null,null,null,null,null,null,null,null,null,null,null,null,null,null,null,null,null,null,null,null,null,null,null,null,null,null,null,null,null,null,null,null,null,null,"購買－１３（2001.１１.25）"]
[null,null,null,null,null,null,null,null,null,null,null,null,null,null,null,null,null,null,null,null,null,null,null,null,null,null,null,null,null,null,null,null,null,null,null,null,null,null,null,null,null,null,null,null,null,null,null,null,null,null,null,null,null,null,null,null,null,null,null,null,"確認",null,null,null,"作成"]
[null,null,null,null,null,null,null,null,null,null,null,null,null,null,null,null,null,null,null,null,null,null,null,null,null,null,null,null,null,null,null,null,null,null,null,null,null,"外　注　工　事　特　記　事　項",null,null,null,null,null,null,null,null,null,null,null,null,null,null,null,null,null,null,null,null,null,null,"担当部長",null,null,null,"作業所長"]
[]
[]
[null,null,null,null,null,null,null,null,null,null,null,null,null,null,null,null,null,null,null,null,null,null,null,null,null,null,null,null,null,null,null,null,null,null,null,null,null,null,null,null,null,null,null,null,null,null,null,null,null,null,null,null,null,null,null,null,null,null,null,null,"．　　．",null,null,null,"．　　．"]
[]
[null,null,null,null,null,null,null,null,null,null,null,null,null,null,null,null,null,null,null,null,null,null,null,null,null,null,null,null,null,null,null,null,null,null,null,"１．","工事名称"]
[null,null,null,null,null,null,null,null,null,null,null,null,null,null,null,null,null,null,null,null,null,null,null,null,null,null,null,null,null,null,null,null,null,null,null,null,{"$error":"#REF!"}]
[null,null,null,null,null,null,null,null,null,null,null,null,null,null,null,null,null,null,null,null,null,null,null,null,null,null,null,null,null,null,null,null,null,null,null,"２．","工事場所"]
[null,null,null,null,null,null,null,null,null,null,null,null,null,null,null,null,null,null,null,null,null,null,null,null,null,null,null,null,null,null,null,null,null,null,null,null,{"$error":"#REF!"}]
[null,null,null,null,null,null,null,null,null,null,null,null,null,null,null,null,null,null,null,null,null,null,null,null,null,null,null,null,null,null,null,null,null,null,null,"３．","工期"]
[null,null,null,null,null,null,null,null,null,null,null,null,null,null,null,null,null,null,null,null,null,null,null,null,null,null,null,null,null,null,null,null,null,null,null,null,"着　　　工"]
[null,null,null,null,null,null,null,null,null,null,null,null,null,null,null,null,null,null,null,null,null,null,null,null,null,null,null,null,null,null,null,null,null,null,null,null,"完　　　成　",null,null,null,null,null,null,null,null,null,"部分工期　　",null,null,"（",null,null,null,null,null,null,"）"]
[]
[null,null,null,null,null,null,null,null,null,null,null,null,null,null,null,null,null,null,null,null,null,null,null,null,null,null,null,null,null,null,null,null,null,null,null,"（総　　則）"]
[null,null,null,null,null,null,null,null,null,null,null,null,null,null,null,null,null,null,null,null,null,null,null,null,null,null,null,null,null,null,null,null,null,null,null,"１．","勝井建設株式会社を甲、○○○○を乙とし、本工事における特記事項を定める。"]
[null,null,null,null,null,null,null,null,null,null,null,null,null,null,null,null,null,null,null,null,null,null,null,null,null,null,null,null,null,null,null,null,null,null,null,null,"工事の遂行にあたっては、「工事下請基本契約約款」並びに本特記仕様書による。"]
[]
[null,null,null,null,null,null,null,null,null,null,null,null,null,null,null,null,null,null,null,null,null,null,null,null,null,null,null,null,null,null,null,null,null,null,null,"（適用する品質システム）"]
[null,null,null,null,null,null,null,null,null,null,null,null,null,null,null,null,null,null,null,null,null,null,null,null,null,null,null,null,null,null,null,null,null,null,null,"２．","本工事では、ＩＳＯ　９００１（ＪＩＳ　Ｑ　９００１:２０００）に基づいた品質システムを適用する。"]
[]
[null,null,null,null,null,null,null,null,null,null,null,null,null,null,null,null,null,null,null,null,null,null,null,null,null,null,null,null,null,null,null,null,null,null,null,"（適用する仕様書、図面等）"]
[null,null,null,null,null,null,null,null,null,null,null,null,null,null,null,null,null,null,null,null,null,null,null,null,null,null,null,null,null,null,null,null,null,null,null,"３．","仕様書",null,"中国地方建設局土木工事　平成○年版（参考）"]
[null,null,null,null,null,null,null,null,null,null,null,null,null,null,null,null,null,null,null,null,null,null,null,null,null,null,null,null,null,null,null,null,null,null,null,null,null,null,"○○○○　○○○　　　○年度版"]
[null,null,null,null,null,null,null,null,null,null,null,null,null,null,null,null,null,null,null,null,null,null,null,null,null,null,null,null,null,null,null,null,null,null,null,null,"図　面　　　",null,"○○○○工事○○○○工区○○○○図（ 〃 ）"]
[null,null,null,null,null,null,null,null,null,null,null,null,null,null,null,null,null,null,null,null,null,null,null,null,null,null,null,null,null,null,null,null,null,null,null,null,null,null,"図面番号　○～○",null,null,null,null,null,null,null,null,null,null,null,null,null,null,null,"その他"]
[null,null,null,null,null,null,null,null,null,null,null,null,null,null,null,null,null,null,null,null,null,null,null,null,null,null,null,null,null,null,null,null,null,null,null,"（発注者からの指示事項）"]
[null,null,null,null,null,null,null,null,null,null,null,null,null,null,null,null,null,null,null,null,null,null,null,null,null,null,null,null,null,null,null,null,null,null,null,"４．","発注者からの指示事項"]
[]
[]
[]
[null,null,null,null,null,null,null,null,null,null,null,null,null,null,null,null,null,null,null,null,null,null,null,null,null,null,null,null,null,null,null,null,null,null,null,"（支給品）"]
[null,null,null,null,null,null,null,null,null,null,null,null,null,null,null,null,null,null,null,null,null,null,null,null,null,null,null,null,null,null,null,null,null,null,null,"５．","支給品の内容"]
[null,null,null,null,null,null,null,null,null,null,null,null,null,null,null,null,null,null,null,null,null,null,null,null,null,null,null,null,null,null,null,null,null,null,null,"品　名",null,null,null,null,null,null,null,null,null,"等級、規格、形式",null,null,null,null,null,null,null,null,null,"単　位",null,null,"数　量",null,null,"備　考"]
[]
[]
[]
[]
[]
[]
[]
[null,null,null,null,null,null,null,null,null,null,null,null,null,null,null,null,null,null,null,null,null,null,null,null,null,null,null,null,null,null,null,null,null,null,null,"（調達資機材）"]
[null,null,null,null,null,null,null,null,null,null,null,null,null,null,null,null,null,null,null,null,null,null,null,null,null,null,null,null,null,null,null,null,null,null,null,"６．","乙の調達する資機材"]
[null,null,null,null,null,null,null,null,null,null,null,null,null,null,null,null,null,null,null,null,null,null,null,null,null,null,null,null,null,null,null,null,null,null,null,"品　名",null,null,null,null,null,null,null,null,null,"等級、規格、形式",null,null,null,null,null,null,null,null,null,"単　位",null,null,"数　量",null,null,"必要書類、検査方法、出荷許可方法"]
[]
[]
[]
[]
[]
[]
[]
[]
[]
[null,null,null,null,null,null,null,null,null,null,null,null,null,null,null,null,null,null,null,null,null,null,null,null,null,null,null,null,null,null,null,null,null,null,null,"（提出書類）"]
[null,null,null,null,null,null,null,null,null,null,null,null,null,null,null,null,null,null,null,null,null,null,null,null,null,null,null,null,null,null,null,null,null,null,null,"７．","本工事遂行にあたり、乙は甲に対し、施工管理及び安全衛生管理に関わる以下の書類内で、甲が指示する書類を提出しなければならない。"]
[null,null,null,null,null,null,null,null,null,null,null,null,null,null,null,null,null,null,null,null,null,null,null,null,null,null,null,null,null,null,null,null,null,null,null,"番　号",null,"書　類　名",null,null,null,null,null,null,null,null,null,"適　用",null,"記　　　　事"]
[null,null,null,null,null,null,null,null,null,null,null,null,null,null,null,null,null,null,null,null,null,null,null,null,null,null,null,null,null,null,null,null,null,null,null,"①",null,"品質管理関連書類（成果表等）"]
[null,null,null,null,null,null,null,null,null,null,null,null,null,null,null,null,null,null,null,null,null,null,null,null,null,null,null,null,null,null,null,null,null,null,null,"②",null,"写真管理関連書類（工事記録写真等）"]
[null,null,null,null,null,null,null,null,null,null,null,null,null,null,null,null,null,null,null,null,null,null,null,null,null,null,null,null,null,null,null,null,null,null,null,"③",null,"出来形管理関連書類（成果表等）"]
[null,null,null,null,null,null,null,null,null,null,null,null,null,null,null,null,null,null,null,null,null,null,null,null,null,null,null,null,null,null,null,null,null,null,null,"④",null,"安全衛生関係書類"]
[null,null,null,null,null,null,null,null,null,null,null,null,null,null,null,null,null,null,null,null,null,null,null,null,null,null,null,null,null,null,null,null,null,null,null,"⑤",null,"その他甲の指示するもの"]
[]
[null,null,null,null,null,null,null,null,null,null,null,null,null,null,null,null,null,null,null,null,null,null,null,null,null,null,null,null,null,null,null,null,null,null,null,"８．","有償支給材"]
[null,null,null,null,null,null,null,null,null,null,null,null,null,null,null,null,null,null,null,null,null,null,null,null,null,null,null,null,null,null,null,null,null,null,null,null,"・","有償支給材に関しては、支給された材料費に相当する出来高を計上する。"]
[null,null,null,null,null,null,null,null,null,null,null,null,null,null,null,null,null,null,null,null,null,null,null,null,null,null,null,null,null,null,null,null,null,null,null,null,"・","有償支給材の支払金額からの控除方法は、"]
[null,null,null,null,null,null,null,null,null,null,null,null,null,null,null,null,null,null,null,null,null,null,null,null,null,null,null,null,null,null,null,null,null,null,null,null,null,"甲が現金払いの場合、乙の現金払い分から控除"]
[null,null,null,null,null,null,null,null,null,null,null,null,null,null,null,null,null,null,null,null,null,null,null,null,null,null,null,null,null,null,null,null,null,null,null,null,null,"甲が手形払いの場合、乙の手形払い分から控除するものとする。"]
[]
[null,null,null,null,null,null,null,null,null,null,null,null,null,null,null,null,null,null,null,null,null,null,null,null,null,null,null,null,null,null,null,null,null,null,null,"９.","　作業員休息所、資材置場及び工事関係会社が共同で使用するものは、乙の現場代理人（以下、現場責任者という。）が責任をもって清掃及び整理整頓し、かつ他の業者とトラブルのないように維持管理を行うこと。"]
[]
[]
[null,null,null,null,null,null,null,null,null,null,null,null,null,null,null,null,null,null,null,null,null,null,null,null,null,null,null,null,null,null,null,null,null,null,null,"１０.","　契約外工事が発生する場合、乙は事前に甲の承認を得た後、作業を行い、その精算は当該月に甲乙協議の上精算処理を行う。当該月以降の精算及び支払いはできないものとする。"]
[]
[]
[null,null,null,null,null,null,null,null,null,null,null,null,null,null,null,null,null,null,null,null,null,null,null,null,null,null,null,null,null,null,null,null,null,null,null,"（甲との打合わせ）"]
[null,null,null,null,null,null,null,null,null,null,null,null,null,null,null,null,null,null,null,null,null,null,null,null,null,null,null,null,null,null,null,null,null,null,null,"１１.","　乙の現場責任者は、甲の担当者と毎日指定された時間に翌日の作業及び安全に関する打合せを行い、作業員全員に周知徹底を図ること、また、定例打合せ・定例会議等には必ず出席すること。"]
[]
[]
[]
[]
[null,null,null,null,null,null,null,null,null,null,null,null,null,null,null,null,null,null,null,null,null,null,null,null,null,null,null,null,null,null,null,null,null,null,null,"１３.","乙の現場責任者は、次の事項を実施すること。"]
[null,null,null,null,null,null,null,null,null,null,null,null,null,null,null,null,null,null,null,null,null,null,null,null,null,null,null,null,null,null,null,null,null,null,null,null,"・","朝礼、ラジオ体操及び指差呼称訓練。"]
[null,null,null,null,null,null,null,null,null,null,null,null,null,null,null,null,null,null,null,null,null,null,null,null,null,null,null,null,null,null,null,null,null,null,null,null,"・","安全施工サイクル活動（朝礼、ＫＹミーティング、安全点検、作業中の監督・指導、作業打合せ、一斉清掃、終業時の確認、週間一斉片付け、安全衛生協議会、安全大会、職長会、定期点検・自主点検）の実施、記録及び参加。"]
[]
[null,null,null,null,null,null,null,null,null,null,null,null,null,null,null,null,null,null,null,null,null,null,null,null,null,null,null,null,null,null,null,null,null,null,null,null,"・","作業に先立ち、作業標準の作成、作業員の指導・教育。"]
[null,null,null,null,null,null,null,null,null,null,null,null,null,null,null,null,null,null,null,null,null,null,null,null,null,null,null,null,null,null,null,null,null,null,null,null,"・","現場持ち込み機械、器具の届け出、整備、点検及び記録。"]
[null,null,null,null,null,null,null,null,null,null,null,null,null,null,null,null,null,null,null,null,null,null,null,null,null,null,null,null,null,null,null,null,null,null,null,null,"・","その他、甲の指示する安全衛生行事。"]
[]
[null,null,null,null,null,null,null,null,null,null,null,null,null,null,null,null,null,null,null,null,null,null,null,null,null,null,null,null,null,null,null,null,null,null,null,"１４.","安全（保安）設備については、甲が資機材を無償貸与するが、安全設備の仮払い、維持管理については乙の負担とする。"]
[]
[null,null,null,null,null,null,null,null,null,null,null,null,null,null,null,null,null,null,null,null,null,null,null,null,null,null,null,null,null,null,null,null,null,null,null,"（就業時間）"]
[null,null,null,null,null,null,null,null,null,null,null,null,null,null,null,null,null,null,null,null,null,null,null,null,null,null,null,null,null,null,null,null,null,null,null,"１５.","　作業時間は原則として、８：００～１７：００とし、日曜日、祝日並びに現場で定めた休日を休みとする。但し、やむを得ない事情により就業時間、休日を変更する場合、乙は甲の承認を得なければならない。"]
[]
[]
[null,null,null,null,null,null,null,null,null,null,null,null,null,null,null,null,null,null,null,null,null,null,null,null,null,null,null,null,null,null,null,null,null,null,null,"（施工方法及び使用材料）"]
[null,null,null,null,null,null,null,null,null,null,null,null,null,null,null,null,null,null,null,null,null,null,null,null,null,null,null,null,null,null,null,null,null,null,null,"１６.","　工事の変更、承認事項について、乙の独断で甲の施主と直接折衝協議等を行ってはならない。また、施工にかかる全ての計画、実施については、甲・乙及び関係者を交えて協議する。乙の現場責任者との協議により決定した事項については、乙の総意とみなし、他の者がみだりに変更してはならない。変更が生じた場合は、改めて甲の現場代理人若しくは主任技術者に申し出を行い、再協議を行うこと。"]
[null,null,null,null,null,null,null,null,null,null,null,null,null,null,null,null,null,null,null,null,null,null,null,null,null,null,null,null,null,null,null,null,null,null,null,"　　　"]
[null,null,null,null,null,null,null,null,null,null,null,null,null,null,null,null,null,null,null,null,null,null,null,null,null,null,null,null,null,null,null,null,null,null,null,"　　　"]
[]
[null,null,null,null,null,null,null,null,null,null,null,null,null,null,null,null,null,null,null,null,null,null,null,null,null,null,null,null,null,null,null,null,null,null,null,"（沿道対策）"]
[null,null,null,null,null,null,null,null,null,null,null,null,null,null,null,null,null,null,null,null,null,null,null,null,null,null,null,null,null,null,null,null,null,null,null,"１７.","沿道対策上、甲の指示するものについて（油脂類、その他）、乙が外注すること。"]
[]
[null,null,null,null,null,null,null,null,null,null,null,null,null,null,null,null,null,null,null,null,null,null,null,null,null,null,null,null,null,null,null,null,null,null,null,"（検査及び引き渡し）"]
[null,null,null,null,null,null,null,null,null,null,null,null,null,null,null,null,null,null,null,null,null,null,null,null,null,null,null,null,null,null,null,null,null,null,null,"１８.","検査及び引き渡しに伴う、仕上げ、清掃等に必要な材料、労力は乙の負担とする。"]
[]
[null,null,null,null,null,null,null,null,null,null,null,null,null,null,null,null,null,null,null,null,null,null,null,null,null,null,null,null,null,null,null,null,null,null,null,"（その他）"]
[null,null,null,null,null,null,null,null,null,null,null,null,null,null,null,null,null,null,null,null,null,null,null,null,null,null,null,null,null,null,null,null,null,null,null,"１９.","関係諸官庁、施主及び甲の安全パトロール及び検査等に必要な材料、労力は乙の負担とする。"]
[null,null,null,null,null,null,null,null,null,null,null,null,null,null,null,null,null,null,null,null,null,null,null,null,null,null,null,null,null,null,null,null,null,null,null,null,null,null,null,null,null,null,null,null,null,null,null,null,null,null,null,null,null,null,null,null,"購買－１４（2001.11.25）"]
[null,null,null,null,null,null,null,null,null,null,null,null,null,null,null,null,null,null,null,null,null,null,null,null,null,null,null,null,null,null,null,null,null,"物　品　納　入　特　記　事　項"]
[]
[null,null,null,null,null,null,null,null,null,null,null,null,null,null,null,null,null,null,null,null,null,null,null,null,null,null,null,null,null,null,null,null,null,"（総　　則）"]
[null,null,null,null,null,null,null,null,null,null,null,null,null,null,null,null,null,null,null,null,null,null,null,null,null,null,null,null,null,null,null,null,null,"１．"," 勝井建設株式会社を（甲）、注文書記載納入会社を（乙）とし、注文書記載の物品納入における特記事項を定める。納入に際しては、本特記仕様書による。"]
[]
[]
[null,null,null,null,null,null,null,null,null,null,null,null,null,null,null,null,null,null,null,null,null,null,null,null,null,null,null,null,null,null,null,null,null,"（適用する品質システム）"]
[null,null,null,null,null,null,null,null,null,null,null,null,null,null,null,null,null,null,null,null,null,null,null,null,null,null,null,null,null,null,null,null,null,"２．","本物品の納入における適用品質システムは、ＩＳＯ　９００１（ＪＩＳ　Ｑ　９９０１：２０００）を適用する。"]
[]
[null,null,null,null,null,null,null,null,null,null,null,null,null,null,null,null,null,null,null,null,null,null,null,null,null,null,null,null,null,null,null,null,null,"(納品検査）"]
[null,null,null,null,null,null,null,null,null,null,null,null,null,null,null,null,null,null,null,null,null,null,null,null,null,null,null,null,null,null,null,null,null,"３．","　物品の注文書記載の納入場所（以下、納入場所という。）への納入に際しては、当社の指定する受入検査責任者の立会のもと、指定された場所、位置に保管、養生方法の指示を受け、納品検査を受けること。尚、当該受入検査は、合格後であっても不適合品が発見された場合の責を免じるものではない。"]
[]
[]
[]
[null,null,null,null,null,null,null,null,null,null,null,null,null,null,null,null,null,null,null,null,null,null,null,null,null,null,null,null,null,null,null,null,null,"（不適合の処置）"]
[null,null,null,null,null,null,null,null,null,null,null,null,null,null,null,null,null,null,null,null,null,null,null,null,null,null,null,null,null,null,null,null,null,"４．","　納入物品が、指定する図面、見積条件及び注文書の指示に適合しない場合は、甲の指示に従い所定期間内に乙の負担で実施すること。尚、乙が理由なく本注文を履行しない場合、又はこの期間内に履行不可能と認められる場合は、本注文を解約することがある。この場合これに生じる一切の損害は乙の負担とする。"]
[]
[]
[]
[null,null,null,null,null,null,null,null,null,null,null,null,null,null,null,null,null,null,null,null,null,null,null,null,null,null,null,null,null,null,null,null,null,"（所有権利）"]
[null,null,null,null,null,null,null,null,null,null,null,null,null,null,null,null,null,null,null,null,null,null,null,null,null,null,null,null,null,null,null,null,null,"５．","受入検査合格後、納入場所に搬入した物品の所有権は、その都度甲に帰属する。"]
[]
[null,null,null,null,null,null,null,null,null,null,null,null,null,null,null,null,null,null,null,null,null,null,null,null,null,null,null,null,null,null,null,null,null,"（精　　算）"]
[null,null,null,null,null,null,null,null,null,null,null,null,null,null,null,null,null,null,null,null,null,null,null,null,null,null,null,null,null,null,null,null,null,"６．","納入数量に、変更が生じた場合は実納入数量にて変更して精算をする。"]
[null,null,null,null,null,null,null,null,null,null,null,null,null,null,null,null,null,null,null,null,null,null,null,null,null,null,null,null,null,null,null,null,null,"１／２"]
[null,null,null,null,null,null,null,null,null,null,null,null,null,null,null,null,null,null,null,null,null,null,null,null,null,null,null,null,null,null,null,null,null,null,null,null,null,null,null,null,null,null,null,null,null,null,null,null,null,null,null,null,null,null,"購買－１４　物品納入特記事項"]
[null,null,null,null,null,null,null,null,null,null,null,null,null,null,null,null,null,null,null,null,null,null,null,null,null,null,null,null,null,null,null,null,null,"（瑕疵の担保及び期間）"]
[null,null,null,null,null,null,null,null,null,null,null,null,null,null,null,null,null,null,null,null,null,null,null,null,null,null,null,null,null,null,null,null,null,"７．","　甲がその注文者に負うべき瑕疵の担保及び期間について、乙より納入された物品が因で生じた瑕疵についての修補費用は乙の負担とする。尚、その期間は、甲が負うべき瑕疵の担保期間とする。"]
[]
[]
[null,null,null,null,null,null,null,null,null,null,null,null,null,null,null,null,null,null,null,null,null,null,null,null,null,null,null,null,null,null,null,null,null,"（その他）"]
[null,null,null,null,null,null,null,null,null,null,null,null,null,null,null,null,null,null,null,null,null,null,null,null,null,null,null,null,null,null,null,null,null,"８．","この特記事項に定めのない事項については、必要に応じて甲、乙協議のうえ決定する。"]
[]
[]
[]
[]
[]
[]
[]
[]
[]
[]
[]
[]
[]
[]
[]
[]
[]
[]
[null,null,null,null,null,null,null,null,null,null,null,null,null,null,null,null,null,null,null,null,null,null,null,null,null,null,null,null,null,null,null,null,null,"２／２"]
[]
[]
[]
[]
[]
[]
[]
[]
[]
[]
[]
[]
[]
[]
[]
[]
[]
[]
[]
[]
[]
[]
[]
[]
[]
[]
[]
[]
[]
[]
[]
[]
[]
[]
[]
[]
[]
[]
[]
[]
[]
[]
[]
[]
[]
[]
[]
[]
[]
[]
[]
[]
[]
[]
[]
[]
[]
[]
[]
[]
[]
[]
[]
[]
[]
[]
[]
[]
[]
[]
[]
[]
[]
[]
[]
[]
[]
[]
[]
[]
[]
[]
[]
[]
[]
[]
[]
[]
[]
[]
[]
[]
[]
[]
[]
[]
[]
[]
[]
[]
[]
[]
[]
[]
[]
[]
[]
[]
[]
[]
[]
[]
[]
[]
[]
[]
[]
[]
[]
[]
[]
[]
[]
[]
[]
[]
[]
[]
[]
[]
[]
[]
[]
[]
[]
[]
[]
[]
[]
[]
[]
[]
[]
[]
[]
[]
[]
[]
[]
[]
[]
[]
[]
[]
[]
[]
[]
[]
[]
[]
[]
[]
[]
[]
[]
[]
[]
[]
[]
[]
[]
[]
[]
[]
[]
[]
[]
[]
[]
[]
[]
[]
[null,null,null,null,null,null,null,null,null,null,null,null,null,null,null,null,null,null,null,null,null,null,null,null,null,null,null,null,null,null,null,null,null,"２／２"]
[null,null,null,null,null,null,null,null,null,null,"文書番号：購買－１６",null,null,null,null,null,null,null,null,null,"更新年月日",null,null,"平成 　　年  　月  　日"]
[null,null,null,null,null,null,null,null,null,null,"発行部門：設計担当部門",null,null,null,null,null,null,null,null,null,"管理部門",null,null,"土木部",null,null,null,null,null,"Ｎｏ．"]
[]
[]
[null,null,null,"所　在　地　",null,null,null,null,null,null,null,null,null,"電話番号",null,null,null,"主たる種目",null,null,null,null,null,"設計部門評価ランク",null,null,null,null,null,"記入"]
[null,null,null,null,null,null,null,null,null,null,null,null,null,null,null,null,null,null,null,null,null,null,null,"能力",null,"納期",null,"価格"]
[null,null,null,"今津町１－１５－２７",null,null,null,null,null,null,null,null,null,"22-5556",null,null,null,"開発行為の設計",null,null,null,null,null,"可・不可",null,"可・不可",null,"可・不可"]
[null,null,null,"御庄１－１１５－９",null,null,null,null,null,null,null,null,null,"46-0673",null,null,null,"地質調査・土質試験",null,null,null,null,null,"可・不可",null,"可・不可",null,"可・不可"]
[null,null,null,"御庄１－１１１－２",null,null,null,null,null,null,null,null,null,"46-0111",null,null,null,"測量調査設計",null,null,null,null,null,"可・不可",null,"可・不可",null,"可・不可"]
[null,null,null,"下松市葉山２－９０４－１６",null,null,null,null,null,null,null,null,null,"0833-46-4466",null,null,null,"法面調査設計",null,null,null,null,null,"可・不可",null,"可・不可",null,"可・不可"]
[null,null,null,"広島県広島市西区庚午南１－３５－２３",null,null,null,null,null,null,null,null,null,"082-273-6814",null,null,null,"下水管内調査、法面工設計",null,null,null,null,null,"可・不可",null,"可・不可",null,"可・不可"]
[null,null,null,"吉敷郡秋穂町東３５０２",null,null,null,null,null,null,null,null,null,"0839-84-2021",null,null,null,"プレキャストボックス設計",null,null,null,null,null,"可・不可",null,"可・不可",null,"可・不可"]
[null,null,null,"広島市中区大手町１－２－１",null,null,null,null,null,null,null,null,null,"082-244-5053",null,null,null,"地質調査・測量解析設計",null,null,null,null,null,"可・不可",null,"可・不可",null,"可・不可"]
[null,null,null,"山口市穂積町１－２",null,null,null,null,null,null,null,null,null,"0839-25-7489",null,null,null,"法面調査設計",null,null,null,null,null,"可・不可",null,"可・不可",null,"可・不可"]
[null,null,null,"徳山市若宮町１－２０",null,null,null,null,null,null,null,null,null,"0834-31-5525",null,null,null,"開発設計",null,null,null,null,null,"可・不可",null,"可・不可",null,"可・不可"]
[null,null,null,"錦見８－２８－１",null,null,null,null,null,null,null,null,null,"43-2243",null,null,null,"登記・測量",null,null,null,null,null,"可・不可",null,"可・不可",null,"可・不可"]
[null,null,null,"広島市中区鶴見町４－２２",null,null,null,null,null,null,null,null,null,"082-246-4422",null,null,null,"各種舗装設計",null,null,null,null,null,"可・不可",null,"可・不可",null,"可・不可"]
[null,null,null,"広島市南区京橋町１－２３　　         ",null,null,null,null,null,null,null,null,null,"082-261-1164",null,null,null,"仮設構造物設計",null,null,null,null,null,"可・不可",null,"可・不可",null,"可・不可"]
[null,null,null,"山口市赤妻町３－１　　　　",null,null,null,null,null,null,null,null,null,"　0839-22-8106",null,null,null,"法面調査設計",null,null,null,null,null,"可・不可",null,"可・不可",null,"可・不可",null,"左記１３業者評価実施"]
[]
[null,null,null,null,null,null,null,null,null,null,null,null,null,null,null,null,null,null,null,null,null,null,null,null,null,null,null,null,null,"平成１２年　４月２５日"]
[]
[]
[]
[]
[]
[]
[]
[null,null,null,null,null,null,null,null,null,null,null,null,null,null,null,null,null,null,null,null,null,null,null,null,null,null,null,null,null,null,null,null,null,"文書名：外　注　設　計　会　社　評　価　表（2001.11.25）",null,null,null,null,null,null,null,null,null,null,null,null,"文書番号：購買－１７"]
[null,null,null,null,null,null,null,null,null,null,null,null,null,null,null,null,null,null,null,null,null,null,null,null,null,null,null,null,null,null,null,null,null,null,null,null,null,null,null,null,null,null,null,null,null,null,"発行部門：品質保証部"]
[]
[null,null,null,null,null,null,null,null,null,null,null,null,null,null,null,null,null,null,null,null,null,null,null,null,null,null,null,null,null,null,null,null,null,"設計会社名"]
[null,null,null,null,null,null,null,null,null,null,null,null,null,null,null,null,null,null,null,null,null,null,null,null,null,null,null,null,null,null,null,null,null,"所　在　地",null,null,null,"〒"]
[null,null,null,null,null,null,null,null,null,null,null,null,null,null,null,null,null,null,null,null,null,null,null,null,null,null,null,null,null,null,null,null,null,"代 表 者 名",null,null,null,null,null,null,null,null,null,"電　話　番　号"]
[null,null,null,null,null,null,null,null,null,null,null,null,null,null,null,null,null,null,null,null,null,null,null,null,null,null,null,null,null,null,null,null,null,"資　本　金",null,null,null,null,null,null,null,null,null,"主要設計業務"]
[null,null,null,null,null,null,null,null,null,null,null,null,null,null,null,null,null,null,null,null,null,null,null,null,null,null,null,null,null,null,null,null,null,"担　当　者",null,null,null,null,null,null,null,null,null,"担当者連絡先"]
[]
[null,null,null,null,null,null,null,null,null,null,null,null,null,null,null,null,null,null,null,null,null,null,null,null,null,null,null,null,null,null,null,null,null,"評価方法",null,null,"一項目５点評価。有は、マイナス点。無は、プラス点。これを集計合計とする。"]
[null,null,null,null,null,null,null,null,null,null,null,null,null,null,null,null,null,null,null,null,null,null,null,null,null,null,null,null,null,null,null,null,null,null,"評　　価　　項　　目",null,null,null,null,null,null,null,null,null,null,null,null,"評　　価　　点"]
[null,null,null,null,null,null,null,null,null,null,null,null,null,null,null,null,null,null,null,null,null,null,null,null,null,null,null,null,null,null,null,null,null,"１","工程管理に問題はなかったか。",null,null,null,null,null,null,null,null,null,null,null,null,"有",null,null,"点","無",null,null,"点"]
[null,null,null,null,null,null,null,null,null,null,null,null,null,null,null,null,null,null,null,null,null,null,null,null,null,null,null,null,null,null,null,null,null,"２","設計能力に問題はなかったか。",null,null,null,null,null,null,null,null,null,null,null,null,"有",null,null,"点","無",null,null,"点"]
[null,null,null,null,null,null,null,null,null,null,null,null,null,null,null,null,null,null,null,null,null,null,null,null,null,null,null,null,null,null,null,null,null,"３","指示・要求事項の対応に問題はなかったか。",null,null,null,null,null,null,null,null,null,null,null,null,"有",null,null,"点","無",null,null,"点"]
[null,null,null,null,null,null,null,null,null,null,null,null,null,null,null,null,null,null,null,null,null,null,null,null,null,null,null,null,null,null,null,null,null,"４","積極的に取り組む姿勢がみられたか。",null,null,null,null,null,null,null,null,null,null,null,null,"有",null,null,"点","無",null,null,"点"]
[null,null,null,null,null,null,null,null,null,null,null,null,null,null,null,null,null,null,null,null,null,null,null,null,null,null,null,null,null,null,null,null,null,"５","問題発生時の対応に問題はなかったか。",null,null,null,null,null,null,null,null,null,null,null,null,"有",null,null,"点","無",null,null,"点"]
[null,null,null,null,null,null,null,null,null,null,null,null,null,null,null,null,null,null,null,null,null,null,null,null,null,null,null,null,null,null,null,null,null,"合　　　　計",null,null,null,null,null,null,null,null,null,null,null,null,null,null,null,null,null,null,{"$f":"-AW997-AW998-AW999-AW1000-AW1001+BA997+BA998+BA999+BA1000+BA1001","v":0},null,"点"]
[null,null,null,null,null,null,null,null,null,null,null,null,null,null,null,null,null,null,null,null,null,null,null,null,null,null,null,null,null,null,null,null,null,"評価ランク：",null,null,null,"評価点が(－)の場合取引不可",null,null,null,null,null,null,null,null,null,"取引可　・　取引不可"]
[null,null,null,null,null,null,null,null,null,null,null,null,null,null,null,null,null,null,null,null,null,null,null,null,null,null,null,null,null,null,null,null,null,"設計実績"]
[]
[]
[]
[]
[]
[]
[null,null,null,null,null,null,null,null,null,null,null,null,null,null,null,null,null,null,null,null,null,null,null,null,null,null,null,null,null,null,null,null,null,"部　門　名",null,null,null,"建築部　・　土木部",null,null,null,null,null,null,null,null,null,"承　　認",null,null,null,"作　　成"]
[null,null,null,null,null,null,null,null,null,null,null,null,null,null,null,null,null,null,null,null,null,null,null,null,null,null,null,null,null,null,null,null,null,"発　行　日",null,null,null,null,null,null,null,null,null,null,null,null,null,"部　　長",null,null,null,"設計担当責任者"]
[null,null,null,null,null,null,null,null,null,null,null,null,null,null,null,null,null,null,null,null,null,null,null,null,null,null,null,null,null,null,null,null,null,"管 理 番 号"]
[null,null,null,null,null,null,null,null,null,null,null,null,null,null,null,null,null,null,null,null,null,null,null,null,null,null,null,null,null,null,null,null,null,"設計担当者　→　設計担当部門長"]

{"sheet":"内訳","index":5,"n_rows":103,"n_cols":23,"rows_kept":103,"cut":false,"hidden":false,"merged":[[0,0,0,7]]}
["外　　注　　契　　約　　明　　細　　書"]
["記　号","名　　　称","仕　様　・　規　格","数　量","単　位","単　価","金　額","備　考"]
[null,null,null,null,null,null,{"$f":"D3*F3","v":0}]
[null,null,null,null,null,null,0,null,null,"合計・消費税・総合計",null,null,"（値引きしないとき）",null,null,null,null,"合　計",null,null,null,null,{"$f":"'稟議書（印刷）'!$G$13","v":0}]
[null,null,null,null,null,null,0,null,null,null,null,null,null,null,null,null,null,"消費税",null,10,"％",null,{"$f":"W4*0.1","v":0}]
[null,null,null,null,null,null,0,null,null,null,null,null,null,null,null,null,null,"総合計",null,null,null,null,{"$f":"SUM(W4:W5)","v":0}]
[null,null,null,null,null,null,0,null,null,"すでに入力してありますが、行数が収まりきらない場合は…",null,null,null,null,null,null,null,null,"数式も入っているのでコピー貼り付けして下さい。"]
[null,null,null,null,null,null,0,null,null,"書式などが入っているのですでにある行をコピーして挿入",null,null,null,null,null,null,null,null,"合計の式は自分でやり変えてください。"]
[null,null,null,null,null,null,0,null,null,"合計の範囲はその都度確認してください。"]
[null,null,null,null,null,null,0,null,null,"作ってるうちに消しちゃった場合…右上に同じのあるからコピーして下さい。"]
[null,null,null,null,null,null,0]
[null,null,null,null,null,null,{"$f":"D12*F12","v":0},null,null,"印刷範囲は一枚で設定しています。"]
[null,null,null,null,null,null,0]
[null,null,null,null,null,null,0]
[null,null,null,null,null,null,0]
[null,null,null,null,null,null,0]
[null,null,null,null,null,null,0]
[null,null,null,null,null,null,0]
[null,null,null,null,null,null,0]
[null,null,null,null,null,null,0]
[null,null,null,null,null,null,0]
[null,null,null,null,null,null,0]
[null,null,null,null,null,null,0]
[]
[]
[null,"合　計",null,null,null,null,{"$f":"SUM(G3:G25)","v":0}]
[null,"消費税",null,10,"％",null,{"$f":"G26*0.1","v":0}]
[null,"総合計",null,null,null,null,{"$f":"SUM(G26:G27)","v":0}]
[null,null,null,null,null,null,{"$f":"D29*F29","v":0}]
[null,null,null,null,null,null,{"$f":"D30*F30","v":0}]
[null,null,null,null,null,null,{"$f":"D31*F31","v":0}]
[null,null,null,null,null,null,{"$f":"D32*F32","v":0}]
[null,null,null,null,null,null,0]
[null,null,null,null,null,null,0]
[null,null,null,null,null,null,0]
[null,null,null,null,null,null,0]
[null,null,null,null,null,null,0]
[null,null,null,null,null,null,0]
[null,null,null,null,null,null,0]
[null,null,null,null,null,null,{"$f":"D40*F40","v":0}]
[null,null,null,null,null,null,{"$f":"D41*F41","v":0}]
[null,null,null,null,null,null,{"$f":"D42*F42","v":0}]
[null,null,null,null,null,null,{"$f":"D43*F43","v":0}]
[null,null,null,null,null,null,0]
[null,null,null,null,null,null,0]
[null,null,null,null,null,null,0]
[null,null,null,null,null,null,0]
[null,null,null,null,null,null,0]
[null,null,null,null,null,null,0]
[null,null,null,null,null,null,0]
[null,null,null,null,null,null,0]
[null,null,null,null,null,null,0]
[null,null,null,null,null,null,0]
[null,null,null,null,null,null,0]
[null,null,null,null,null,null,0]
[null,null,null,null,null,null,0]
[null,null,null,null,null,null,0]
[null,null,null,null,null,null,0]
[null,null,null,null,null,null,0]
[null,null,null,null,null,null,0]
[null,null,null,null,null,null,0]
[null,null,null,null,null,null,0]
[null,null,null,null,null,null,0]
[null,null,null,null,null,null,0]
[null,null,null,null,null,null,0]
[null,null,null,null,null,null,0]
[null,null,null,null,null,null,0]
[null,null,null,null,null,null,0]
[null,null,null,null,null,null,0]
[null,null,null,null,null,null,0]
[null,null,null,null,null,null,0]
[null,null,null,null,null,null,0]
[null,null,null,null,null,null,0]
[null,null,null,null,null,null,0]
[null,null,null,null,null,null,0]
[null,null,null,null,null,null,0]
[null,null,null,null,null,null,0]
[null,null,null,null,null,null,0]
[null,null,null,null,null,null,0]
[null,null,null,null,null,null,0]
[null,null,null,null,null,null,0]
[null,null,null,null,null,null,0]
[null,null,null,null,null,null,0]
[null,null,null,null,null,null,0]
[null,null,null,null,null,null,0]
[null,null,null,null,null,null,0]
[null,null,null,null,null,null,0]
[null,null,null,null,null,null,0]
[null,null,null,null,null,null,0]
[null,null,null,null,null,null,0]
[null,null,null,null,null,null,0]
[null,null,null,null,null,null,0]
[null,null,null,null,null,null,0]
[null,null,null,null,null,null,0]
[null,null,null,null,null,null,0]
[null,null,null,null,null,null,0]
[null,null,null,null,null,null,0]
[null,null,null,null,null,null,0]
[null,null,null,null,null,null,0]
[null,null,null,null,null,null,0]
[null,null,null,null,null,null,0]
[null,null,null,null,null,null,0]
[null,null,null,null,null,null,0]

{"sheet":"変更内訳","index":6,"n_rows":190,"n_cols":12,"rows_kept":190,"cut":false,"hidden":false,"merged":[[27,11,27,12],[25,11,25,12],[30,11,30,12],[31,11,31,12],[37,11,37,12],[36,11,36,12],[35,11,35,12],[48,11,48,12],[38,11,38,12],[39,11,39,12],[40,11,40,12],[41,11,41,12],[42,11,42,12],[43,11,43,12],[46,11,46,12],[47,11,47,12],[0,1,0,12],[5,11,5,12],[6,11,6,12],[7,11,7,12],[8,11,8,12],[0,13,2,13],[1,11,1,12],[3,4,3,5],[3,8,3,9],[3,11,4,12],[3,13,4,13],[9,11,9,12],[19,11,19,12],[44,11,44,12],[45,11,45,12],[18,11,18,12],[32,11,32,12],[33,11,33,12],[34,11,34,12],[28,11,28,12],[29,11,29,12],[10,11,10,12],[11,11,11,12],[12,11,12,12],[13,11,13,12],[23,11,23,12],[14,11,14,12],[15,11,15,12],[16,11,16,12],[17,11,17,12],[20,11,20,12],[21,11,21,12],[22,11,22,12],[24,11,24,12],[26,11,26,12],[49,11,49,12],[50,11,50,12],[51,11,51,12],[52,11,52,12],[53,11,53,12],[54,11,54,12],[55,11,55,12],[56,11,56,12],[57,11,57,12],[58,11,58,12],[59,11,59,12],[60,11,60,12],[61,11,61,12],[62,11,62,12],[63,11,63,12],[64,11,64,12],[65,11,65,12],[66,11,66,12],[67,11,67,12],[68,11,68,12],[69,11,69,12],[70,11,70,12],[71,11,71,12],[72,11,72,12],[73,11,73,12],[74,11,74,12],[75,11,75,12],[76,11,76,12],[77,11,77,12],[78,11,78,12],[79,11,79,12],[80,11,80,12],[81,11,81,12],[82,11,82,12],[83,11,83,12],[84,11,84,12],[85,11,85,12],[86,11,86,12],[87,11,87,12],[88,11,88,12],[89,11,89,12],[90,11,90,12],[91,11,91,12],[92,11,92,12],[93,11,93,12],[94,11,94,12],[95,11,95,12],[96,11,96,12],[97,11,97,12],[98,11,98,12],[99,11,99,12],[100,11,100,12],[101,11,101,12],[102,11,102,12],[103,11,103,12],[104,11,104,12],[105,11,105,12],[106,11,106,12],[107,11,107,12],[108,11,108,12],[109,11,109,12],[110,11,110,12],[111,11,111,12],[112,11,112,12],[113,11,113,12],[114,11,114,12],[115,11,115,12],[116,11,116,12],[117,11,117,12],[118,11,118,12],[119,11,119,12],[120,11,120,12],[132,11,132,12],[133,11,133,12],[134,11,134,12],[135,11,135,12],[136,11,136,12],[137,11,137,12],[138,11,138,12],[121,11,121,12],[122,11,122,12],[123,11,123,12],[124,11,124,12],[125,11,125,12],[126,11,126,12],[127,11,127,12],[128,11,128,12],[129,11,129,12],[153,11,153,12],[154,11,154,12],[3,1,4,1],[3,2,4,2],[3,3,4,3],[3,6,4,6],[3,7,4,7],[3,10,4,10],[149,11,149,12],[150,11,150,12],[139,11,139,12],[140,11,140,12],[141,11,141,12],[142,11,142,12],[143,11,143,12],[144,11,144,12],[151,11,151,12],[152,11,152,12],[145,11,145,12],[146,11,146,12],[147,11,147,12],[148,11,148,12],[130,11,130,12],[131,11,131,12],[155,11,155,12],[156,11,156,12],[157,11,157,12],[158,11,158,12],[159,11,159,12],[160,11,160,12],[161,11,161,12],[162,11,162,12],[163,11,163,12],[164,11,164,12],[165,11,165,12],[166,11,166,12],[167,11,167,12],[168,11,168,12],[169,11,169,12],[170,11,170,12],[171,11,171,12],[172,11,172,12],[182,11,182,12],[183,11,183,12],[184,11,184,12],[185,11,185,12],[186,11,186,12],[187,11,187,12],[188,11,188,12],[189,11,189,12],[173,11,173,12],[174,11,174,12],[175,11,175,12],[176,11,176,12],[177,11,177,12],[178,11,178,12],[179,11,179,12],[180,11,180,12],[181,11,181,12]]}
[null,"外　注　契　約　明　細　書"]
[]
[]
[null,"記号","名称","仕様・規格","数　　　　　量",null,"単　位","単価","金　　　　　額",null,"増・減","備　　　　　考"]
[null,null,null,null,"当初","変更",null,null,"当初","変更"]
[null,null,null,null,null,null,null,null,null,null,{"$f":"IF(E6=\"\",\"\",J6-I6)","v":""}]
[null,null,null,null,null,null,null,null,null,null,{"$f":"IF(E7=\"\",\"\",J7-I7)","v":""}]
[null,null,null,null,null,null,null,null,null,null,""]
[null,null,null,null,null,null,null,null,null,null,""]
[null,null,null,null,null,null,null,null,null,null,""]
[null,null,null,null,null,null,null,null,null,null,""]
[null,null,null,null,null,null,null,null,null,null,""]
[null,null,null,null,null,null,null,null,null,null,""]
[null,null,null,null,null,null,null,null,null,null,""]
[null,null,null,null,null,null,null,null,null,null,""]
[null,null,null,null,null,null,null,null,null,null,""]
[null,null,null,null,null,null,null,null,null,null,""]
[null,null,null,null,null,null,null,null,null,null,""]
[null,null,null,null,null,null,null,null,null,null,""]
[null,null,null,null,null,null,null,null,null,null,""]
[null,null,null,null,null,null,null,null,null,null,""]
[null,null,null,null,null,null,null,null,null,null,""]
[null,null,null,null,null,null,null,null,null,null,""]
[null,null,null,null,null,null,null,null,null,null,""]
[null,null,null,null,null,null,null,null,null,null,""]
[null,null,null,null,null,null,null,null,null,null,""]
[null,null,null,null,null,null,null,null,null,null,""]
[null,null,null,null,null,null,null,null,null,null,""]
[null,null,null,null,null,null,null,null,null,null,""]
[null,null,null,null,null,null,null,null,null,null,""]
[null,null,null,null,null,null,null,null,null,null,""]
[null,null,null,null,null,null,null,null,null,null,""]
[null,null,null,null,null,null,null,null,null,null,""]
[null,null,null,null,null,null,null,null,null,null,""]
[]
[]
[null,null,null,null,null,null,null,null,null,null,""]
[null,null,null,null,null,null,null,null,null,null,""]
[null,null,null,null,null,null,null,null,null,null,""]
[null,null,null,null,null,null,null,null,null,null,""]
[]
[]
[]
[]
[]
[]
[]
[]
[]
[]
[]
[]
[]
[]
[]
[]
[]
[]
[]
[]
[]
[]
[null,null,null,null,null,null,null,null,{"$f":"IF(H63=\"\",\"\",E63*H63)","v":""},{"$f":"IF(H63=\"\",\"\",F63*H63)","v":""},""]
[null,null,null,null,null,null,null,null,"","",""]
[null,null,null,null,null,null,null,null,"","",""]
[null,null,null,null,null,null,null,null,"","",""]
[null,null,"合　計",null,null,null,null,null,{"$f":"SUM(I6:I66)","v":0},{"$f":"SUM(J6:J66)","v":0},{"$f":"J67-I67","v":0}]
[null,null,"消費税",null,10,10,"％",null,{"$f":"I67*0.1","v":0},{"$f":"J67*0.1","v":0},{"$f":"J68-I68","v":0}]
[null,null,"総合計",null,null,null,null,null,{"$f":"SUM(I67:I68)","v":0},{"$f":"SUM(J67:J68)","v":0},0]
[null,null,null,null,null,null,null,null,null,null,""]
[null,null,null,null,null,null,null,null,{"$f":"IF(H71=\"\",\"\",E71*H71)","v":""},{"$f":"IF(H71=\"\",\"\",F71*H71)","v":""},{"$f":"IF(E71=\"\",\"\",J71-I71)","v":""}]
[null,null,null,null,null,null,null,null,"","",""]
[null,null,null,null,null,null,null,null,"","",""]
[null,null,null,null,null,null,null,null,"","",""]
[null,null,null,null,null,null,null,null,"","",""]
[null,null,null,null,null,null,null,null,"","",""]
[null,null,null,null,null,null,null,null,"","",""]
[null,null,null,null,null,null,null,null,"","",""]
[null,null,null,null,null,null,null,null,"","",""]
[null,null,null,null,null,null,null,null,"","",""]
[null,null,null,null,null,null,null,null,"","",""]
[null,null,null,null,null,null,null,null,"","",""]
[null,null,null,null,null,null,null,null,"","",""]
[null,null,null,null,null,null,null,null,"","",""]
[null,null,null,null,null,null,null,null,null,null,""]
[null,null,null,null,null,null,null,null,null,null,""]
[null,null,null,null,null,null,null,null,null,null,""]
[null,null,null,null,null,null,null,null,null,null,""]
[null,null,null,null,null,null,null,null,null,null,""]
[null,null,null,null,null,null,null,null,null,null,""]
[null,null,null,null,null,null,null,null,null,null,""]
[null,null,null,null,null,null,null,null,null,null,""]
[null,null,null,null,null,null,null,null,null,null,""]
[null,null,null,null,null,null,null,null,null,null,""]
[null,null,null,null,null,null,null,null,null,null,""]
[null,null,null,null,null,null,null,null,null,null,""]
[null,null,null,null,null,null,null,null,null,null,""]
[null,null,null,null,null,null,null,null,null,null,""]
[null,null,null,null,null,null,null,null,null,null,""]
[null,null,null,null,null,null,null,null,null,null,""]
[null,null,null,null,null,null,null,null,null,null,""]
[null,null,null,null,null,null,null,null,null,null,""]
[null,null,null,null,null,null,null,null,null,null,""]
[null,null,null,null,null,null,null,null,null,null,""]
[null,null,null,null,null,null,null,null,null,null,""]
[null,null,null,null,null,null,null,null,null,null,""]
[null,null,null,null,null,null,null,null,null,null,""]
[null,null,null,null,null,null,null,null,null,null,""]
[null,null,null,null,null,null,null,null,null,null,""]
[null,null,null,null,null,null,null,null,null,null,""]
[null,null,null,null,null,null,null,null,null,null,""]
[null,null,null,null,null,null,null,null,null,null,""]
[null,null,null,null,null,null,null,null,null,null,""]
[null,null,null,null,null,null,null,null,null,null,""]
[null,null,null,null,null,null,null,null,null,null,""]
[null,null,null,null,null,null,null,null,null,null,""]
[null,null,null,null,null,null,null,null,null,null,""]
[null,null,null,null,null,null,null,null,null,null,""]
[null,null,null,null,null,null,null,null,null,null,""]
[null,null,null,null,null,null,null,null,null,null,""]
[null,null,null,null,null,null,null,null,null,null,""]
[null,null,null,null,null,null,null,null,null,null,""]
[null,null,null,null,null,null,null,null,null,null,""]
[null,null,null,null,null,null,null,null,null,null,""]
[null,null,null,null,null,null,null,null,null,null,""]
[null,null,null,null,null,null,null,null,null,null,""]
[null,null,null,null,null,null,null,null,null,null,""]
[null,null,null,null,null,null,null,null,null,null,""]
[null,null,null,null,null,null,null,null,null,null,""]
[null,null,null,null,null,null,null,null,null,null,""]
[null,null,null,null,null,null,null,null,null,null,""]
[null,null,null,null,null,null,null,null,null,null,""]
[null,null,null,null,null,null,null,null,null,null,""]
[null,null,null,null,null,null,null,null,null,null,""]
[null,null,null,null,null,null,null,null,null,null,{"$f":"IF(E135=\"\",\"\",J135-I135)","v":""}]
[null,null,null,null,null,null,null,null,null,null,""]
[null,null,null,null,null,null,null,null,null,null,""]
[null,null,null,null,null,null,null,null,null,null,""]
[null,null,null,null,null,null,null,null,null,null,""]
[null,null,null,null,null,null,null,null,null,null,""]
[null,null,null,null,null,null,null,null,null,null,""]
[null,null,null,null,null,null,null,null,null,null,""]
[null,null,null,null,null,null,null,null,null,null,""]
[null,null,null,null,null,null,null,null,null,null,""]
[null,null,null,null,null,null,null,null,null,null,""]
[null,null,null,null,null,null,null,null,null,null,""]
[null,null,null,null,null,null,null,null,null,null,""]
[null,null,null,null,null,null,null,null,null,null,""]
[null,null,null,null,null,null,null,null,null,null,""]
[null,null,null,null,null,null,null,null,null,null,""]
[null,null,null,null,null,null,null,null,null,null,""]
[null,null,null,null,null,null,null,null,null,null,""]
[null,null,null,null,null,null,null,null,null,null,""]
[null,null,null,null,null,null,null,null,null,null,""]
[null,null,null,null,null,null,null,null,null,null,""]
[null,null,null,null,null,null,null,null,null,null,""]
[null,null,null,null,null,null,null,null,null,null,""]
[null,null,null,null,null,null,null,null,null,null,""]
[null,null,null,null,null,null,null,null,null,null,""]
[null,null,null,null,null,null,null,null,null,null,""]
[null,null,null,null,null,null,null,null,null,null,""]
[null,null,null,null,null,null,null,null,null,null,""]
[null,null,null,null,null,null,null,null,null,null,""]
[null,null,null,null,null,null,null,null,null,null,""]
[null,null,null,null,null,null,null,null,null,null,""]
[null,null,null,null,null,null,null,null,null,null,""]
[null,null,null,null,null,null,null,null,null,null,""]
[null,null,null,null,null,null,null,null,null,null,""]
[null,null,null,null,null,null,null,null,null,null,""]
[null,null,null,null,null,null,null,null,null,null,""]
[null,null,null,null,null,null,null,null,null,null,""]
[null,null,null,null,null,null,null,null,null,null,""]
[null,null,null,null,null,null,null,null,null,null,""]
[null,null,null,null,null,null,null,null,null,null,""]
[null,null,null,null,null,null,null,null,null,null,""]
[null,null,null,null,null,null,null,null,null,null,""]
[null,null,null,null,null,null,null,null,null,null,""]
[null,null,null,null,null,null,null,null,null,null,""]
[null,null,null,null,null,null,null,null,null,null,""]
[null,null,null,null,null,null,null,null,null,null,""]
[null,null,null,null,null,null,null,null,null,null,""]
[null,null,null,null,null,null,null,null,null,null,""]
[null,null,null,null,null,null,null,null,null,null,""]
[null,null,null,null,null,null,null,null,null,null,""]
[null,null,null,null,null,null,null,null,null,null,""]
[null,null,null,null,null,null,null,null,null,null,""]
[null,null,null,null,null,null,null,null,null,null,""]
[null,null,null,null,null,null,null,null,null,null,""]
[null,null,null,null,null,null,null,null,null,null,""]
[null,null,null,null,null,null,null,null,null,null,""]

{"sheet":"注文書","index":7,"n_rows":88,"n_cols":40,"rows_kept":88,"cut":false,"hidden":false,"merged":[[50,28,50,35],[46,21,46,26],[47,21,47,26],[48,21,48,26],[41,28,41,34],[42,20,42,26],[41,20,41,26],[44,20,44,36],[50,21,50,26],[45,28,45,35],[46,28,46,35],[47,28,47,35],[48,28,48,35],[49,28,49,35],[87,3,87,18],[30,5,31,13],[32,7,32,11],[30,23,31,32],[32,25,32,30],[34,19,34,28],[35,20,35,36],[37,19,37,28],[38,20,38,36],[39,20,39,36],[83,3,83,18],[84,3,84,18],[70,2,70,18],[71,2,71,18],[72,2,72,18],[73,2,73,18],[85,3,85,18],[86,3,86,18],[74,2,74,18],[80,2,80,18],[81,3,81,18],[82,3,82,18],[75,1,75,13],[76,2,76,18],[77,2,77,18],[79,1,79,12],[65,1,65,12],[66,2,66,18],[67,2,67,18],[69,1,69,15],[60,4,60,18],[61,4,61,18],[62,4,62,18],[63,4,63,18],[56,2,56,18],[57,4,57,18],[58,4,58,18],[59,4,59,18],[51,2,51,18],[53,1,53,11],[54,2,54,18],[55,2,55,18],[46,2,46,18],[47,2,47,18],[49,1,49,10],[50,2,50,18],[24,11,25,12],[24,13,25,36],[42,3,42,18],[43,3,43,18],[45,1,45,16],[34,1,34,18],[37,3,37,18],[39,1,39,18],[40,3,40,18],[38,3,38,10],[35,3,36,18],[7,33,7,36],[6,29,6,32],[7,19,7,26],[17,18,17,23],[19,24,19,31],[41,3,41,18],[18,18,18,23],[18,24,18,25],[18,26,18,27],[18,31,18,32],[18,33,18,36],[18,28,18,30],[17,24,17,27],[17,33,17,36],[17,28,17,32],[12,1,12,24],[13,1,13,36],[14,18,14,23],[14,1,14,4],[14,24,14,36],[15,1,15,4],[16,1,16,4],[16,5,17,17],[10,29,10,32],[21,23,21,24],[22,23,22,24],[1,29,1,36],[2,1,2,36],[5,1,5,2],[5,3,5,15],[5,19,5,25],[4,31,4,36],[1,1,1,9],[19,1,19,4],[19,5,19,17],[18,1,18,4],[18,5,18,17],[15,5,15,17],[6,1,6,2],[6,3,6,15],[6,19,6,26],[7,3,8,13],[8,14,8,15],[7,1,7,2],[8,19,8,26],[15,18,16,23],[15,25,15,36],[7,29,7,32],[72,24,72,27],[73,24,73,27],[21,25,21,36],[22,25,22,36],[17,1,17,4],[14,5,14,17],[19,32,19,33],[16,25,16,36],[10,33,10,36],[59,30,59,36],[58,24,58,27],[59,24,59,27],[36,20,36,21],[49,21,49,26],[40,20,40,36],[43,19,43,28],[45,21,45,26],[23,4,23,7],[24,1,25,4],[20,1,23,2],[20,3,21,3],[20,4,21,7],[22,4,22,7],[19,18,19,23],[71,24,71,27],[70,30,70,36],[71,30,71,36],[70,20,70,23],[66,19,66,27],[67,20,67,29],[62,24,62,27],[63,24,63,27],[64,24,64,27],[61,30,61,36],[57,20,57,29],[58,20,58,23],[59,20,59,23],[60,20,60,23],[62,30,62,36],[63,30,63,36],[62,20,62,23],[63,20,63,23],[60,24,60,27],[61,24,61,27],[85,21,85,24],[82,25,82,36],[83,25,83,36],[84,25,84,36],[85,25,85,36],[77,30,77,36],[81,20,81,24],[81,25,81,36],[75,24,75,27],[76,24,76,27],[77,24,77,27],[76,20,76,23],[77,20,77,23],[75,20,75,23],[75,30,75,36],[76,30,76,36],[82,21,82,24],[83,21,83,24],[84,21,84,24],[74,24,74,27],[72,20,72,23],[73,20,73,23],[52,19,52,30],[53,20,53,35],[54,20,54,35],[56,19,56,27],[58,30,58,36],[64,30,64,36],[68,20,68,23],[68,30,68,36],[64,20,64,23],[68,24,68,27],[61,20,61,23],[72,30,72,36],[73,30,73,36],[74,30,74,36],[69,24,69,27],[70,24,70,27],[69,30,69,36],[71,20,71,23],[69,20,69,23],[74,20,74,23],[60,30,60,36]]}
[]
[]
[null,"注　　　　文　　　　書"]
[]
[null,null,null,null,null,null,null,null,null,null,null,null,null,null,null,null,null,null,null,null,null,null,null,null,null,null,null,null,null,null,null,"2022-01-09",null,null,null,null,null,"←日付入力"]
[null,"〒",null,{"$f":"ﾃﾞｰﾀ入力!D10","v":{"$error":"#N/A"}},null,null,null,null,null,null,null,null,null,null,null,null,null,null,null,"〒　７４０－００４４"]
[null,"住所",null,{"$f":"ﾃﾞｰﾀ入力!D11","v":{"$error":"#N/A"}},null,null,null,null,null,null,null,null,null,null,null,null,null,null,null,"山口県岩国市通津２３９６番地",null,null,null,null,null,null,null,null,null,"確認、承認"]
[null,"会社名",null,{"$f":"ﾃﾞｰﾀ入力!B14","v":0},null,null,null,null,null,null,null,null,null,null,null,null,null,null,null,"勝井建設株式会社",null,null,null,null,null,null,null,null,null,"総務部長",null,null,null,"作成"]
[null,null,null,null,null,null,null,null,null,null,null,null,null,null,"御中",null,null,null,null,"電　話　０８２７（３８）１２３１　代表"]
[]
[null,null,null,null,null,null,null,null,null,null,null,null,null,null,null,null,null,null,null,null,null,null,null,null,null,null,null,null,null,"．　　．",null,null,null,"．　　．"]
[]
[null,"下記の通り注文しますので、お引き受けの際は、請書に記名、捺印の上、１０日以内にご返送下さい。"]
[null,"なお、請書の製本テープの継ぎ目のところ（表紙と裏紙の双方）に割印を忘れずに押印して下さい。"]
[null,"工事名称",null,null,null,{"$f":"ﾃﾞｰﾀ入力!B6","v":0},null,null,null,null,null,null,null,null,null,null,null,null,"現場名",null,null,null,null,null,{"$f":"ﾃﾞｰﾀ入力!B2","v":0}]
[null,"工事場所",null,null,null,{"$f":"ﾃﾞｰﾀ入力!B7","v":0},null,null,null,null,null,null,null,null,null,null,null,null,"工期",null,null,null,null,null,"自",{"$f":"ﾃﾞｰﾀ入力!B9","v":"00:00:00"}]
[null,"工事種別",null,null,null,{"$f":"ﾃﾞｰﾀ入力!B15","v":"00:00:00"},null,null,null,null,null,null,null,null,null,null,null,null,null,null,null,null,null,null,"至",{"$f":"ﾃﾞｰﾀ入力!B10","v":"00:00:00"}]
[null,"又は物品名",null,null,null,null,null,null,null,null,null,null,null,null,null,null,null,null,"受　渡　条　件",null,null,null,null,null,"施　　　工",null,null,null,"精　算　条　件",null,null,null,null,"実　　　測"]
[null,"金　　　　　額",null,null,null,{"$f":"\"￥\"&+DBCS(FIXED(ROUND(ﾃﾞｰﾀ入力!B16*1.1,0),0))&+\" －　　\"","v":"￥０ －　　"},null,null,null,null,null,null,null,null,null,null,null,null,"工事を施工しない日・時間帯の定め",null,null,null,null,null,{"$f":"IF(ﾃﾞｰﾀ入力!B29=\"\",\"\",ﾃﾞｰﾀ入力!B29)","v":""},null,"日",null,{"$f":"IF(Y19=\"有\",IF(ﾃﾞｰﾀ入力!B30<>\"\",ﾃﾞｰﾀ入力!B30,\"\"),\"\")","v":""},null,null,"時間帯",null,{"$f":"IF(Y19=\"有\",IF(ﾃﾞｰﾀ入力!B31<>\"\",ﾃﾞｰﾀ入力!B31,\"\"),\"\")","v":""}]
[null,"（消費税額）",null,null,null,{"$f":"\"（内消費税￥\"&+DBCS(FIXED(ROUND(ﾃﾞｰﾀ入力!B16*0.1,0),0))&+\" －　）　　\"","v":"（内消費税￥０ －　）　　"},null,null,null,null,null,null,null,null,null,null,null,null,"契約不適合責任期間",null,null,null,null,null,{"$f":"IF(OR(ﾃﾞｰﾀ入力!B33=\"無\",ﾃﾞｰﾀ入力!B35=\"無\"),\"無　　　\",ﾃﾞｰﾀ入力!B35)","v":"00:00:00"},null,null,null,null,null,null,null,{"$f":"IF(OR(ﾃﾞｰﾀ入力!B33=\"無\"),\"\",\"まで\")","v":"まで"}]
[null,"支払条件",null,"①","出来高支払",null,null,null,"毎月25日締切り、出来高相当額（税込）の９０％を翌月２０日に支払い。完了の上、残高を支払う。",null,null,null,null,null,null,null,null,null,null,null,null,null,null,null,null,null,null,null,null,null,null,null,null,null,null,null,null,{"$f":"ﾃﾞｰﾀ入力!B27","v":0}]
[null,null,null,null,null,null,null,null,null,null,null,null,null,null,null,null,null,null,null,null,null,null,null,"但し",null,{"$f":"\"現金 \"&+AL22&+\"％　手形 \"&+AM22&\"％　期日現金払\"&+AN22&\"％（サイト \"&ﾃﾞｰﾀ入力!$B$26&\"日）\"","v":"現金 0％　手形 0％　期日現金払0％（サイト 日）"},null,null,null,null,null,null,null,null,null,null,null,{"$f":"ﾃﾞｰﾀ入力!$B$25","v":0},{"$f":"ﾃﾞｰﾀ入力!$B$24","v":0},{"$f":"ﾃﾞｰﾀ入力!$B$23","v":0}]
[null,null,null,"②","納入･完成一括払",null,null,null,"検収月25日締切り、検収相当額の１００％を翌月２０日に全額支払う。",null,null,null,null,null,null,null,null,null,null,null,null,null,null,"但し",null,{"$f":"\"現金 \"&+AL23&+\"％　手形 \"&+AM23&\"％　期日現金払\"&+AN23&\"％（サイト \"&ﾃﾞｰﾀ入力!$B$26&\"日）\"","v":"現金 0％　手形 0％　期日現金払0％（サイト 日）"},null,null,null,null,null,null,null,null,null,null,null,{"$f":"ﾃﾞｰﾀ入力!$B$25","v":0},{"$f":"ﾃﾞｰﾀ入力!$B$24","v":0},{"$f":"ﾃﾞｰﾀ入力!$B$23","v":0}]
[null,null,null,null,"※",null,null,null,"支払いの際に安全協力会費として支払いの０．３％を相殺とし、振込に掛かる手数料は下請負人負担とする。"]
[null,"内容･内訳",null,null,null,"　別紙明細書の通り。",null,null,null,null,null,"特　記\n事　項",null,"注文書・請書に記載のない条件については、個別工事下請契約約款、外注工事特記事項、物品納入特記事項に定めるところによる。　なお、建設工事が、建設工事に係る資材の再資源化等に関する法律に規定する対象建設工事の場合は、①解体工事に要する費用、②再資源化等に要する費用、③分別解体等の方法、④再資源化等をする施設の名称及び所在地についてそれぞれ記入する。"]
[]
[]
[]
[]
[]
[null,null,null,null,null,"外　注　工　事　特　記　事　項",null,null,null,null,null,null,null,null,null,null,null,null,null,null,null,null,null,"外　注　工　事　特　記　事　項"]
[]
[null,null,null,null,null,null,null,"（基　本　事　項）",null,null,null,null,null,null,null,null,null,null,null,null,null,null,null,null,null,"（特　記　事　項）"]
[]
[null,"（総　　則）",null,null,null,null,null,null,null,null,null,null,null,null,null,null,null,null,null,"（適用する品質システム）"]
[null,"１．","①",{"$f":"\"勝井建設株式会社を元請負人、\"&ﾃﾞｰﾀ入力!B14&\"を下請負人とし、元請負人下請負人間における契約工事の特記事項（基本事項）を定める。\"","v":"勝井建設株式会社を元請負人、を下請負人とし、元請負人下請負人間における契約工事の特記事項（基本事項）を定める。"},null,null,null,null,null,null,null,null,null,null,null,null,null,null,null,"１．","本工事では、ISO 9001：2015（品質）、ISO 14001：2015（環境）、ISO 45001：2018（労働安全衛生）に基づいたマネジメントシステム"]
[null,null,null,null,null,null,null,null,null,null,null,null,null,null,null,null,null,null,null,null,"を適用する。"]
[null,null,"②","工事の遂行にあたっては、「個別工事下請契約約款」、「外注工事特記事項」、並びに本特記事項（「外注工事特記事項",null,null,null,null,null,null,null,null,null,null,null,null,null,null,null,"（適用する仕様書、図面等）"]
[null,null,null,"（基本事項）」）によるものとする。",null,null,null,null,null,null,null,null,null,null,null,null,null,null,null,"２．","仕様書　　"]
[null,"（有償支給材）"]
[null,"２．","①","有償支給材に関しては、支給された材料費に相当する出来高を計上する。",null,null,null,null,null,null,null,null,null,null,null,null,null,null,null,null,"図　面　　 　"]
[null,null,"②","有償支給材の支払金額からの控除方法は、",null,null,null,null,null,null,null,null,null,null,null,null,null,null,null,null,null,null,null,null,null,null,null,"その他"]
[null,null,null,"元請負人が現金払いの場合、下請負人の現金払い分から控除し、"]
[null,null,null,"元請負人が手形払いの場合、下請負人の手形払い分から控除するものとする。",null,null,null,null,null,null,null,null,null,null,null,null,null,null,null,"（提出書類）"]
[null,null,null,null,null,null,null,null,null,null,null,null,null,null,null,null,null,null,null,"３．","本工事遂行にあたり、下請負人は元請負人に対し、施工管理及び安全衛生管理に関わる以下の書類内で、元請負人が指示する書類を提出しなければならない。"]
[null,"（作業員宿舎等）",null,null,null,null,null,null,null,null,null,null,null,null,null,null,null,null,null,null,"番　号","書　類　名",null,null,null,null,null,"適　用","記　　　　事"]
[null,"３．","作業員休息所、資材置場及び工事関係会社が共同で使用するものは、下請負人の現場代理人（以下、現場責任者という。）が",null,null,null,null,null,null,null,null,null,null,null,null,null,null,null,null,null,"①","品質管理関連書類（成果表等）"]
[null,null,"責任をもって清掃及び整理整頓し、かつ他の業者とトラブルのないように維持管理を行うこと。",null,null,null,null,null,null,null,null,null,null,null,null,null,null,null,null,null,"②","写真管理関連書類（工事記録写真等）"]
[null,null,null,null,null,null,null,null,null,null,null,null,null,null,null,null,null,null,null,null,"③","出来形管理関連書類（成果表等）"]
[null,"（元請負人との打合わせ）",null,null,null,null,null,null,null,null,null,null,null,null,null,null,null,null,null,null,"④","安全衛生関係書類",null,null,null,null,null,"○"]
[null,"４．","下請負人の現場責任者は、元請負人の担当者と毎日指定された時間に翌日の作業及び安全に関する打合わせを行い、作業員全員に",null,null,null,null,null,null,null,null,null,null,null,null,null,null,null,null,null,"⑤","その他元請負人の指示するもの",null,null,null,null,null,"○"]
[null,null,"周知徹底を図ること、また、定例打合わせ・定例会議等には必ず出席すること。"]
[null,null,null,null,null,null,null,null,null,null,null,null,null,null,null,null,null,null,null,"（発注者からの指示事項）"]
[null,"（安全対策）",null,null,null,null,null,null,null,null,null,null,null,null,null,null,null,null,null,"４．","発注者からの指示事項"]
[null,"５．","（1）下請負人は元請負人の下請負人で組織する安全協議会に加入する。当協議会は労働災害を防止するために各種の活動を行う。"]
[null,null,"　   運営その他は元請負人の定める安全協議会規約に従うものとする。"]
[null,null,"（2）下請負人の現場責任者は、次の事項を実施すること。",null,null,null,null,null,null,null,null,null,null,null,null,null,null,null,null,"（支給品）"]
[null,null,null,"①","朝礼、ラジオ体操。",null,null,null,null,null,null,null,null,null,null,null,null,null,null,"５．","支給品の内容"]
[null,null,null,"②","安全施工サイクル活動（朝礼、KYミーティング、安全点検、作業中の監督・指導、作業打合わせ、一斉清掃、",null,null,null,null,null,null,null,null,null,null,null,null,null,null,null,"品　名",null,null,null,"等級、規格、形式",null,null,null,"単　位","数　量","備　考"]
[null,null,null,null,"終業時の確認、週間一斉片付け、安全衛生協議会、安全大会、職長会、定期点検・自主点検）の実施、記録"]
[null,null,null,null,"及び参加。"]
[null,null,null,"③","作業に先立ち、作業標準の作成、作業員の指導・教育。"]
[null,null,null,"④","現場持ち込み機械、器具の届け出、整備、点検及び記録。"]
[null,null,null,"⑤","その他、元請負人の指示する安全衛生行事。"]
[]
[null,"（就業時間）"]
[null,"６．","作業時間は原則として、８：００～１７：００とし、日曜日、祝日並びに現場で定めた休日を休みとする。",null,null,null,null,null,null,null,null,null,null,null,null,null,null,null,null,"（調達資機材）"]
[null,null,"但し、やむを得ない事情により就業時間、休日を変更する場合、下請負人は元請負人の承認を得なければならない。",null,null,null,null,null,null,null,null,null,null,null,null,null,null,null,null,"６．","下請負人の調達する資機材"]
[null,null,null,null,null,null,null,null,null,null,null,null,null,null,null,null,null,null,null,null,"品　名",null,null,null,"等級、規格、形式",null,null,null,"単　位","数　量","必要書類、検査方法、出荷許可方法"]
[null,"（施工方法及び使用材料）"]
[null,"７．","工事の変更、承認事項について、下請負人の独断で元請負人の施主と直接折衝協議等を行ってはならない。また、施工にかかる全ての"]
[null,null,"計画、実施については、元請負人・下請負人及び関係者を交えて協議する。下請負人の現場責任者との協議により決定した"]
[null,null,"事項については、下請負人の総意とみなし、他の者がみだりに変更してはならない。変更が生じた場合は、改めて元請負人の現場代理人"]
[null,null,"若しくは主任技術者に申し出を行い、再協議を行うこと。"]
[]
[null,"（相殺）"]
[null,"８．","下請工事の契約により、立替金、その他元請負人が下請負人より支払を受けるべき金銭債権が発生した場合、元請負人は、"]
[null,null,"下請負人への請負代金支払の際、これを相殺することができる。"]
[]
[null,"（第42条第1項の三に該当する場合）",null,null,null,null,null,null,null,null,null,null,null,null,null,null,null,null,null,"（リサイクル関係）"]
[null,"９．","個別工事下請契約約款第42条第1項の三とは、次の各号の一に該当する場合を云う。",null,null,null,null,null,null,null,null,null,null,null,null,null,null,null,null,"７．","建設工事に係る資材の再資源化等に関する法律(平成十二年法律第百四号)第九条第一項に規定する対象建設工事の場合"]
[null,null,"①","代表者の住所が不明のとき、または工事を放棄し、もしくは正当の理由がなく工事を休止したとき。",null,null,null,null,null,null,null,null,null,null,null,null,null,null,null,null,"項　目",null,null,null,null,"記　　　　事"]
[null,null,"②","施工または管理が著しく不適当で、元請負人に重大な迷惑を及ぼしたとき、または、及ぼす恐れがあると認められるとき。",null,null,null,null,null,null,null,null,null,null,null,null,null,null,null,null,"①","解体工事に要する費用"]
[null,null,"③","第4条（法令等遵守の義務）に違反し、元請負人が是正を指示・指導しても、なお履行しないとき。",null,null,null,null,null,null,null,null,null,null,null,null,null,null,null,null,"②","再資源化等に要する費用"]
[null,null,"④","支払停止に至ったとき、または下請負人の振出した手形、小切手が不渡となったとき。",null,null,null,null,null,null,null,null,null,null,null,null,null,null,null,null,"③","分別解体等の方法"]
[null,null,"⑤","仮差押、差押、仮処分もしくは競売の申請または破産、民事再生手続開始、会社更生手続開始、会社整理開始もしくは",null,null,null,null,null,null,null,null,null,null,null,null,null,null,null,null,"④","再資源化等をする施設の名称及び所在地"]
[null,null,null,"特別精算開始の各申立または特定調停の申立その他これらに準ずる法的手続きの申立があったときまたは解散したとき。"]
[null,null,"⑥","前5号に掲げる場合のほか、この契約に違反し、その違反により契約の目的を達することができないと認められるとき。",null,null,null,null,null,null,null,null,null,null,null,null,null,null,null,null,null,null,null,null,null,null,null,null,null,null,null,null,null,null,null,null,"<2020.10.02改定>"]

{"sheet":"請書","index":8,"n_rows":88,"n_cols":38,"rows_kept":88,"cut":false,"hidden":false,"merged":[[6,33,6,36],[7,1,7,3],[7,4,7,13],[11,11,11,26],[9,30,10,31],[9,34,10,35],[13,1,13,8],[13,29,13,32],[13,35,13,36],[13,33,13,34],[5,1,5,3],[5,4,5,13],[0,29,0,36],[1,1,1,36],[2,33,2,36],[3,1,3,13],[3,33,3,36],[3,14,3,15],[0,1,0,9],[14,5,14,17],[14,18,14,23],[14,24,14,36],[15,25,15,36],[16,1,16,4],[16,25,16,36],[16,5,17,17],[17,1,17,4],[17,18,17,23],[17,24,17,27],[17,28,17,32],[17,33,17,36],[14,1,14,4],[19,1,19,4],[19,5,19,17],[19,18,19,23],[15,1,15,4],[15,5,15,17],[15,18,16,23],[18,1,18,4],[18,5,18,17],[18,18,18,23],[19,24,19,31],[19,32,19,33],[24,11,25,12],[24,13,25,36],[21,23,21,24],[22,25,22,36],[21,25,21,36],[22,23,22,24],[18,24,18,25],[18,26,18,27],[18,28,18,30],[18,31,18,32],[18,33,18,36],[24,1,25,4],[20,1,23,2],[20,3,21,3],[23,4,23,7],[22,4,22,7],[20,4,21,7],[30,5,31,13],[30,23,31,32],[32,7,32,11],[32,25,32,30],[34,1,34,18],[34,19,34,28],[35,20,35,36],[35,3,36,18],[36,20,36,21],[37,3,37,18],[37,19,37,28],[38,20,38,36],[38,3,38,10],[39,1,39,18],[39,20,39,36],[40,3,40,18],[40,20,40,36],[41,3,41,18],[42,3,42,18],[43,3,43,18],[43,19,43,28],[42,20,42,26],[41,20,41,26],[41,28,41,34],[45,1,45,16],[45,21,45,26],[45,28,45,35],[44,20,44,36],[46,2,46,18],[46,21,46,26],[46,28,46,35],[47,2,47,18],[47,21,47,26],[47,28,47,35],[48,21,48,26],[48,28,48,35],[49,1,49,10],[49,21,49,26],[49,28,49,35],[50,2,50,18],[50,21,50,26],[50,28,50,35],[51,2,51,18],[52,19,52,30],[53,1,53,11],[53,20,53,35],[54,2,54,18],[54,20,54,35],[55,2,55,18],[56,2,56,18],[56,19,56,27],[57,4,57,18],[57,20,57,29],[58,4,58,18],[58,20,58,23],[58,24,58,27],[58,30,58,36],[59,4,59,18],[59,20,59,23],[59,24,59,27],[59,30,59,36],[60,4,60,18],[60,20,60,23],[60,24,60,27],[60,30,60,36],[61,4,61,18],[61,20,61,23],[61,24,61,27],[61,30,61,36],[62,4,62,18],[62,20,62,23],[62,24,62,27],[62,30,62,36],[63,4,63,18],[63,20,63,23],[63,24,63,27],[63,30,63,36],[64,20,64,23],[64,24,64,27],[64,30,64,36],[65,1,65,12],[66,2,66,18],[66,19,66,27],[67,2,67,18],[67,20,67,29],[68,20,68,23],[68,24,68,27],[68,30,68,36],[69,1,69,15],[69,20,69,23],[69,24,69,27],[69,30,69,36],[70,2,70,18],[70,20,70,23],[70,24,70,27],[70,30,70,36],[71,2,71,18],[71,20,71,23],[71,24,71,27],[71,30,71,36],[72,2,72,18],[72,20,72,23],[72,24,72,27],[72,30,72,36],[73,2,73,18],[73,20,73,23],[73,24,73,27],[73,30,73,36],[74,2,74,18],[74,20,74,23],[74,24,74,27],[74,30,74,36],[75,1,75,13],[75,20,75,23],[75,24,75,27],[75,30,75,36],[76,2,76,18],[76,20,76,23],[76,24,76,27],[76,30,76,36],[77,2,77,18],[77,20,77,23],[77,24,77,27],[77,30,77,36],[84,3,84,18],[84,21,84,24],[84,25,84,36],[87,3,87,18],[85,3,85,18],[85,21,85,24],[85,25,85,36],[86,3,86,18],[79,1,79,12],[80,2,80,18],[81,3,81,18],[81,20,81,24],[81,25,81,36],[82,3,82,18],[82,21,82,24],[82,25,82,36],[83,3,83,18],[83,21,83,24],[83,25,83,36]]}
[]
[null,"請　　　　　　　　書"]
[null,null,null,null,null,null,null,null,null,null,null,null,null,null,null,null,null,null,null,null,null,null,null,null,null,null,null,null,null,null,null,null,null,"確認、承認"]
[null,"勝井建設株式会社",null,null,null,null,null,null,null,null,null,null,null,null,"御中",null,null,null,null,null,null,null,null,null,null,null,null,null,null,null,null,null,null,"総務部長"]
[]
[null,"住 所"]
[null,null,null,null,null,null,null,null,null,null,null,null,null,null,null,null,null,null,null,null,null,null,null,null,null,null,null,null,null,null,null,null,null,"．　　．"]
[null,"会 社 名"]
[]
[null,null,null,null,null,null,null,null,null,null,null,null,null,null,null,null,null,null,null,null,null,null,null,null,null,null,null,null,null,null,"印紙",null,null,null,"印紙"]
[]
[null,null,null,null,null,null,null,null,null,null,null,"下記の通りお請けします。"]
[]
["日付入力→",{"$f":"注文書!AF5","v":"2022-01-09"}]
[null,"工事名称",null,null,null,{"$f":"注文書!F15","v":0},null,null,null,null,null,null,null,null,null,null,null,null,"現場名",null,null,null,null,null,{"$f":"注文書!Y15","v":0}]
[null,"工事場所",null,null,null,{"$f":"注文書!F16","v":0},null,null,null,null,null,null,null,null,null,null,null,null,"工期",null,null,null,null,null,"自",{"$f":"注文書!Z16","v":"00:00:00"}]
[null,"工事種別",null,null,null,{"$f":"注文書!F17","v":"00:00:00"},null,null,null,null,null,null,null,null,null,null,null,null,null,null,null,null,null,null,"至",{"$f":"注文書!Z17","v":"00:00:00"}]
[null,"又は物品名",null,null,null,null,null,null,null,null,null,null,null,null,null,null,null,null,"受　渡　条　件",null,null,null,null,null,{"$f":"注文書!Y18","v":"施　　　工"},null,null,null,"精　算　条　件",null,null,null,null,{"$f":"注文書!AH18","v":"実　　　測"}]
[null,"金　　　　　額",null,null,null,{"$f":"注文書!F19","v":"￥０ －　　"},null,null,null,null,null,null,null,null,null,null,null,null,"工事を施工しない日・時間帯の定め",null,null,null,null,null,{"$f":"注文書!Y19","v":""},null,"日",null,{"$f":"注文書!AC19","v":""},null,null,"時間帯",null,{"$f":"注文書!AH19","v":""}]
[null,"（消費税額）",null,null,null,{"$f":"注文書!F20","v":"（内消費税￥０ －　）　　"},null,null,null,null,null,null,null,null,null,null,null,null,"契約不適合責任期間",null,null,null,null,null,{"$f":"注文書!Y20","v":"00:00:00"},null,null,null,null,null,null,null,{"$f":"注文書!AG20","v":"まで"}]
[null,"支払条件",null,"①","出来高支払",null,null,null,"毎月25日締切り、出来高相当額（税込）の９０％を翌月２０日に支払い。完了の上、残高を支払う。",null,null,null,null,null,null,null,null,null,null,null,null,null,null,null,null,null,null,null,null,null,null,null,null,null,null,null,null,{"$f":"ﾃﾞｰﾀ入力!B27","v":0}]
[null,null,null,null,null,null,null,null,null,null,null,null,null,null,null,null,null,null,null,null,null,null,null,"但し",null,{"$f":"注文書!Z22","v":"現金 0％　手形 0％　期日現金払0％（サイト 日）"}]
[null,null,null,"②","納入･完成一括払",null,null,null,"検収月25日締切り、検収相当額の１００％を翌月２０日に全額支払う。",null,null,null,null,null,null,null,null,null,null,null,null,null,null,"但し",null,{"$f":"注文書!Z23","v":"現金 0％　手形 0％　期日現金払0％（サイト 日）"}]
[null,null,null,null,"※",null,null,null,"支払いの際に安全協力会費として支払いの０．３％を相殺とし、振込に掛かる手数料は下請負人負担とする。"]
[null,"内容･内訳",null,null,null,"　別紙明細書の通り。",null,null,null,null,null,"特　記\n事　項",null,{"$f":"注文書!N25","v":"注文書・請書に記載のない条件については、個別工事下請契約約款、外注工事特記事項、物品納入特記事項に定めるところによる。　なお、建設工事が、建設工事に係る資材の再資源化等に関する法律に規定する対象建設工事の場合は、①解体工事に要する費用、②再資源化等に要する費用、③分別解体等の方法、④再資源化等をする施設の名称及び所在地についてそれぞれ記入する。"}]
[]
[]
[]
[]
[]
[null,null,null,null,null,"外　注　工　事　特　記　事　項",null,null,null,null,null,null,null,null,null,null,null,null,null,null,null,null,null,"外　注　工　事　特　記　事　項"]
[]
[null,null,null,null,null,null,null,"（基　本　事　項）",null,null,null,null,null,null,null,null,null,null,null,null,null,null,null,null,null,"（特　記　事　項）"]
[]
[null,"（総　　則）",null,null,null,null,null,null,null,null,null,null,null,null,null,null,null,null,null,"（適用する品質システム）"]
[null,"１．","①",{"$f":"\"勝井建設株式会社を元請負人、\"&ﾃﾞｰﾀ入力!B14&\"を下請負人とし、元請負人下請負人間における契約工事の特記事項（基本事項）を定める。\"","v":"勝井建設株式会社を元請負人、を下請負人とし、元請負人下請負人間における契約工事の特記事項（基本事項）を定める。"},null,null,null,null,null,null,null,null,null,null,null,null,null,null,null,"１．","本工事では、ISO 9001：2015（品質）、ISO 14001：2015（環境）、ISO 45001：2018（労働安全衛生）に基づいたマネジメントシステム"]
[null,null,null,null,null,null,null,null,null,null,null,null,null,null,null,null,null,null,null,null,"を適用する。"]
[null,null,"②","工事の遂行にあたっては、「個別工事下請契約約款」、「外注工事特記事項」、並びに本特記事項（「外注工事特記事項",null,null,null,null,null,null,null,null,null,null,null,null,null,null,null,"（適用する仕様書、図面等）"]
[null,null,null,"（基本事項）」）によるものとする。",null,null,null,null,null,null,null,null,null,null,null,null,null,null,null,"２．","仕様書　　"]
[null,"（有償支給材）"]
[null,"２．","①","有償支給材に関しては、支給された材料費に相当する出来高を計上する。",null,null,null,null,null,null,null,null,null,null,null,null,null,null,null,null,"図　面　　 　"]
[null,null,"②","有償支給材の支払金額からの控除方法は、",null,null,null,null,null,null,null,null,null,null,null,null,null,null,null,null,null,null,null,null,null,null,null,"その他"]
[null,null,null,"元請負人が現金払いの場合、下請負人の現金払い分から控除し、"]
[null,null,null,"元請負人が手形払いの場合、下請負人の手形払い分から控除するものとする。",null,null,null,null,null,null,null,null,null,null,null,null,null,null,null,"（提出書類）"]
[null,null,null,null,null,null,null,null,null,null,null,null,null,null,null,null,null,null,null,"３．","本工事遂行にあたり、下請負人は元請負人に対し、施工管理及び安全衛生管理に関わる以下の書類内で、元請負人が指示する書類を提出しなければならない。"]
[null,"（作業員宿舎等）",null,null,null,null,null,null,null,null,null,null,null,null,null,null,null,null,null,null,"番　号","書　類　名",null,null,null,null,null,"適　用","記　　　　事"]
[null,"３．","作業員休息所、資材置場及び工事関係会社が共同で使用するものは、下請負人の現場代理人（以下、現場責任者という。）が",null,null,null,null,null,null,null,null,null,null,null,null,null,null,null,null,null,"①","品質管理関連書類（成果表等）"]
[null,null,"責任をもって清掃及び整理整頓し、かつ他の業者とトラブルのないように維持管理を行うこと。",null,null,null,null,null,null,null,null,null,null,null,null,null,null,null,null,null,"②","写真管理関連書類（工事記録写真等）"]
[null,null,null,null,null,null,null,null,null,null,null,null,null,null,null,null,null,null,null,null,"③","出来形管理関連書類（成果表等）"]
[null,"（元請負人との打合わせ）",null,null,null,null,null,null,null,null,null,null,null,null,null,null,null,null,null,null,"④","安全衛生関係書類",null,null,null,null,null,"○"]
[null,"４．","下請負人の現場責任者は、元請負人の担当者と毎日指定された時間に翌日の作業及び安全に関する打合わせを行い、作業員全員に",null,null,null,null,null,null,null,null,null,null,null,null,null,null,null,null,null,"⑤","その他元請負人の指示するもの",null,null,null,null,null,"○"]
[null,null,"周知徹底を図ること、また、定例打合わせ・定例会議等には必ず出席すること。"]
[null,null,null,null,null,null,null,null,null,null,null,null,null,null,null,null,null,null,null,"（発注者からの指示事項）"]
[null,"（安全対策）",null,null,null,null,null,null,null,null,null,null,null,null,null,null,null,null,null,"４．","発注者からの指示事項"]
[null,"５．","（1）下請負人は元請負人の下請負人で組織する安全協議会に加入する。当協議会は労働災害を防止するために各種の活動を行う。"]
[null,null,"　   運営その他は元請負人の定める安全協議会規約に従うものとする。"]
[null,null,"（2）下請負人の現場責任者は、次の事項を実施すること。",null,null,null,null,null,null,null,null,null,null,null,null,null,null,null,null,"（支給品）"]
[null,null,null,"①","朝礼、ラジオ体操。",null,null,null,null,null,null,null,null,null,null,null,null,null,null,"５．","支給品の内容"]
[null,null,null,"②","安全施工サイクル活動（朝礼、KYミーティング、安全点検、作業中の監督・指導、作業打合わせ、一斉清掃、",null,null,null,null,null,null,null,null,null,null,null,null,null,null,null,"品　名",null,null,null,"等級、規格、形式",null,null,null,"単　位","数　量","備　考"]
[null,null,null,null,"終業時の確認、週間一斉片付け、安全衛生協議会、安全大会、職長会、定期点検・自主点検）の実施、記録"]
[null,null,null,null,"及び参加。"]
[null,null,null,"③","作業に先立ち、作業標準の作成、作業員の指導・教育。"]
[null,null,null,"④","現場持ち込み機械、器具の届け出、整備、点検及び記録。"]
[null,null,null,"⑤","その他、元請負人の指示する安全衛生行事。"]
[]
[null,"（就業時間）"]
[null,"６．","作業時間は原則として、８：００～１７：００とし、日曜日、祝日並びに現場で定めた休日を休みとする。",null,null,null,null,null,null,null,null,null,null,null,null,null,null,null,null,"（調達資機材）"]
[null,null,"但し、やむを得ない事情により就業時間、休日を変更する場合、下請負人は元請負人の承認を得なければならない。",null,null,null,null,null,null,null,null,null,null,null,null,null,null,null,null,"６．","下請負人の調達する資機材"]
[null,null,null,null,null,null,null,null,null,null,null,null,null,null,null,null,null,null,null,null,"品　名",null,null,null,"等級、規格、形式",null,null,null,"単　位","数　量","必要書類、検査方法、出荷許可方法"]
[null,"（施工方法及び使用材料）"]
[null,"７．","工事の変更、承認事項について、下請負人の独断で元請負人の施主と直接折衝協議等を行ってはならない。また、施工にかかる全ての"]
[null,null,"計画、実施については、元請負人・下請負人及び関係者を交えて協議する。下請負人の現場責任者との協議により決定した"]
[null,null,"事項については、下請負人の総意とみなし、他の者がみだりに変更してはならない。変更が生じた場合は、改めて元請負人の現場代理人"]
[null,null,"若しくは主任技術者に申し出を行い、再協議を行うこと。"]
[]
[null,"（相殺）"]
[null,"８．","下請工事の契約により、立替金、その他元請負人が下請負人より支払を受けるべき金銭債権が発生した場合、元請負人は、"]
[null,null,"下請負人への請負代金支払の際、これを相殺することができる。"]
[]
[null,"（第42条第1項の三に該当する場合）",null,null,null,null,null,null,null,null,null,null,null,null,null,null,null,null,null,"（リサイクル関係）"]
[null,"９．","個別工事下請契約約款第42条第1項の三とは、次の各号の一に該当する場合を云う。",null,null,null,null,null,null,null,null,null,null,null,null,null,null,null,null,"７．","建設工事に係る資材の再資源化等に関する法律(平成十二年法律第百四号)第九条第一項に規定する対象建設工事の場合"]
[null,null,"①","代表者の住所が不明のとき、または工事を放棄し、もしくは正当の理由がなく工事を休止したとき。",null,null,null,null,null,null,null,null,null,null,null,null,null,null,null,null,"項　目",null,null,null,null,"記　　　　事"]
[null,null,"②","施工または管理が著しく不適当で、元請負人に重大な迷惑を及ぼしたとき、または、及ぼす恐れがあると認められるとき。",null,null,null,null,null,null,null,null,null,null,null,null,null,null,null,null,"①","解体工事に要する費用"]
[null,null,"③","第4条（法令等遵守の義務）に違反し、元請負人が是正を指示・指導しても、なお履行しないとき。",null,null,null,null,null,null,null,null,null,null,null,null,null,null,null,null,"②","再資源化等に要する費用"]
[null,null,"④","支払停止に至ったとき、または下請負人の振出した手形、小切手が不渡となったとき。",null,null,null,null,null,null,null,null,null,null,null,null,null,null,null,null,"③","分別解体等の方法"]
[null,null,"⑤","仮差押、差押、仮処分もしくは競売の申請または破産、民事再生手続開始、会社更生手続開始、会社整理開始もしくは",null,null,null,null,null,null,null,null,null,null,null,null,null,null,null,null,"④","再資源化等をする施設の名称及び所在地"]
[null,null,null,"特別精算開始の各申立または特定調停の申立その他これらに準ずる法的手続きの申立があったときまたは解散したとき。"]
[null,null,"⑥","前5号に掲げる場合のほか、この契約に違反し、その違反により契約の目的を達することができないと認められるとき。",null,null,null,null,null,null,null,null,null,null,null,null,null,null,null,null,null,null,null,null,null,null,null,null,null,null,null,null,null,null,null,null,"<2020.10.02改定>"]

{"sheet":"注文書 (変更用)","index":9,"n_rows":88,"n_cols":40,"rows_kept":88,"cut":false,"hidden":false,"merged":[[60,24,60,27],[60,30,60,36],[53,20,53,35],[54,20,54,35],[56,19,56,27],[58,30,58,36],[23,23,23,24],[22,25,22,36],[75,24,75,27],[74,30,74,36],[72,20,72,23],[73,20,73,23],[74,20,74,23],[72,24,72,27],[73,24,73,27],[74,24,74,27],[62,20,62,23],[63,20,63,23],[64,20,64,23],[70,30,70,36],[71,20,71,23],[71,24,71,27],[71,30,71,36],[68,20,68,23],[76,24,76,27],[77,24,77,27],[76,20,76,23],[77,20,77,23],[75,20,75,23],[75,30,75,36],[76,30,76,36],[18,33,18,36],[19,24,19,25],[19,26,19,27],[19,28,19,30],[19,31,19,32],[19,33,19,36],[62,24,62,27],[63,24,63,27],[64,24,64,27],[57,20,57,29],[58,20,58,23],[59,20,59,23],[60,20,60,23],[59,30,59,36],[58,24,58,27],[59,24,59,27],[73,30,73,36],[82,25,82,36],[83,25,83,36],[84,25,84,36],[85,25,85,36],[82,21,82,24],[83,21,83,24],[84,21,84,24],[85,21,85,24],[77,30,77,36],[81,20,81,24],[81,25,81,36],[69,20,69,23],[70,20,70,23],[70,24,70,27],[72,30,72,36],[66,19,66,27],[67,20,67,29],[68,24,68,27],[69,24,69,27],[61,30,61,36],[62,30,62,36],[63,30,63,36],[64,30,64,36],[61,24,61,27],[68,30,68,36],[61,20,61,23],[69,30,69,36],[17,25,17,36],[18,1,18,4],[18,18,18,23],[14,1,14,36],[23,25,23,36],[52,19,52,30],[49,21,49,26],[46,28,46,35],[47,28,47,35],[48,28,48,35],[49,28,49,35],[50,21,50,26],[25,11,26,12],[25,13,26,36],[45,1,45,16],[46,2,46,18],[47,2,47,18],[39,1,39,18],[24,4,24,7],[25,1,26,4],[21,1,24,2],[21,3,22,3],[21,4,22,7],[23,4,23,7],[2,29,2,36],[3,1,3,36],[6,1,6,2],[6,3,6,15],[6,19,6,25],[11,29,11,32],[5,31,5,36],[2,2,2,11],[7,1,7,2],[7,3,7,15],[8,29,8,32],[8,33,8,36],[7,29,7,32],[11,33,11,36],[8,19,8,26],[7,19,7,26],[8,1,8,2],[9,19,9,26],[8,3,9,13],[9,14,9,15],[61,4,61,18],[62,4,62,18],[63,4,63,18],[65,1,65,12],[66,2,66,18],[67,2,67,18],[69,1,69,15],[49,1,49,10],[50,2,50,18],[51,2,51,18],[53,1,53,11],[54,2,54,18],[55,2,55,18],[56,2,56,18],[57,4,57,18],[58,4,58,18],[83,3,83,18],[84,3,84,18],[85,3,85,18],[86,3,86,18],[87,3,87,18],[30,5,31,13],[32,7,32,11],[34,1,34,18],[37,3,37,18],[43,3,43,18],[70,2,70,18],[71,2,71,18],[72,2,72,18],[73,2,73,18],[74,2,74,18],[80,2,80,18],[81,3,81,18],[82,3,82,18],[75,1,75,13],[76,2,76,18],[77,2,77,18],[79,1,79,12],[59,4,59,18],[60,4,60,18],[19,18,19,23],[20,1,20,4],[20,5,20,17],[19,1,19,4],[19,5,19,17],[13,1,13,24],[15,18,15,23],[36,20,36,21],[35,3,36,18],[30,23,31,32],[32,25,32,30],[34,19,34,28],[35,20,35,36],[15,1,15,4],[15,24,15,36],[16,5,16,17],[15,5,15,17],[17,1,17,4],[17,5,18,17],[16,1,16,4],[18,24,18,27],[18,28,18,32],[16,18,17,23],[16,25,16,36],[20,32,20,33],[42,3,42,18],[50,28,50,35],[46,21,46,26],[47,21,47,26],[48,21,48,26],[42,20,42,26],[41,20,41,26],[40,20,40,36],[43,19,43,28],[45,21,45,26],[45,28,45,35],[44,20,44,36],[20,18,20,23],[20,24,20,31],[38,3,38,10],[41,28,41,34],[37,19,37,28],[38,20,38,36],[39,20,39,36],[22,23,22,24],[40,3,40,18],[41,3,41,18]]}
[]
[]
[null,null,"変更契約"]
[null,"注　　　　文　　　　書"]
[]
[null,null,null,null,null,null,null,null,null,null,null,null,null,null,null,null,null,null,null,null,null,null,null,null,null,null,null,null,null,null,null,null,null,null,null,null,null,"←日付入力"]
[null,"〒",null,{"$f":"ﾃﾞｰﾀ入力!D10","v":{"$error":"#N/A"}},null,null,null,null,null,null,null,null,null,null,null,null,null,null,null,"〒　７４０－００４４"]
[null,"住所",null,{"$f":"ﾃﾞｰﾀ入力!D11","v":{"$error":"#N/A"}},null,null,null,null,null,null,null,null,null,null,null,null,null,null,null,"山口県岩国市通津２３９６番地",null,null,null,null,null,null,null,null,null,"確認、承認"]
[null,"会社名",null,{"$f":"ﾃﾞｰﾀ入力!B14","v":0},null,null,null,null,null,null,null,null,null,null,null,null,null,null,null,"勝井建設株式会社",null,null,null,null,null,null,null,null,null,"総務部長",null,null,null,"作成"]
[null,null,null,null,null,null,null,null,null,null,null,null,null,null,"御中",null,null,null,null,"電　話　０８２７（３８）１２３１　代表"]
[]
[null,null,null,null,null,null,null,null,null,null,null,null,null,null,null,null,null,null,null,null,null,null,null,null,null,null,null,null,null,"．　　．",null,null,null,"．　　．"]
[]
[null,"下記の通り注文しますので、お引き受けの際は、請書に記名、捺印の上、１０日以内にご返送下さい。"]
[null,"なお、請書の製本テープの継ぎ目のところ（表紙と裏紙の双方）に割印を忘れずに押印して下さい。"]
[null,"工事名称",null,null,null,{"$f":"ﾃﾞｰﾀ入力!B6","v":0},null,null,null,null,null,null,null,null,null,null,null,null,"現場名",null,null,null,null,null,{"$f":"ﾃﾞｰﾀ入力!B2","v":0}]
[null,"工事場所",null,null,null,{"$f":"ﾃﾞｰﾀ入力!B7","v":0},null,null,null,null,null,null,null,null,null,null,null,null,"工期",null,null,null,null,null,"自",{"$f":"ﾃﾞｰﾀ入力!B11","v":"00:00:00"}]
[null,"工事種別",null,null,null,{"$f":"ﾃﾞｰﾀ入力!B15","v":"00:00:00"},null,null,null,null,null,null,null,null,null,null,null,null,null,null,null,null,null,null,"至",{"$f":"ﾃﾞｰﾀ入力!B12","v":"00:00:00"}]
[null,"又は物品名",null,null,null,null,null,null,null,null,null,null,null,null,null,null,null,null,"受　渡　条　件",null,null,null,null,null,"施　　　工",null,null,null,"精　算　条　件",null,null,null,null,"実　　　測"]
[null,"金　　　　　額",null,null,null,{"$f":"\"￥\"&+DBCS(FIXED(ROUND(ﾃﾞｰﾀ入力!B22*1.1,0),0))&+\" －　　\"","v":"￥０ －　　"},null,null,null,null,null,null,null,null,null,null,null,null,"工事を施工しない日・時間帯の定め",null,null,null,null,null,{"$f":"IF(ﾃﾞｰﾀ入力!B29=\"\",\"\",ﾃﾞｰﾀ入力!B29)","v":""},null,"日",null,{"$f":"IF(Y20=\"有\",IF(ﾃﾞｰﾀ入力!B30<>\"\",ﾃﾞｰﾀ入力!B30,\"\"),\"\")","v":""},null,null,"時間帯",null,{"$f":"IF(Y20=\"有\",IF(ﾃﾞｰﾀ入力!B31<>\"\",ﾃﾞｰﾀ入力!B31,\"\"),\"\")","v":""}]
[null,"（消費税額）",null,null,null,{"$f":"\"（内消費税￥\"&+DBCS(FIXED(ROUND(ﾃﾞｰﾀ入力!B22*0.1,0),0))&+\" －　）　　\"","v":"（内消費税￥０ －　）　　"},null,null,null,null,null,null,null,null,null,null,null,null,"契約不適合責任期間",null,null,null,null,null,{"$f":"IF(OR(ﾃﾞｰﾀ入力!B33=\"無\",ﾃﾞｰﾀ入力!B35=\"無\"),\"無　　　\",ﾃﾞｰﾀ入力!B35)","v":"00:00:00"},null,null,null,null,null,null,null,{"$f":"IF(OR(ﾃﾞｰﾀ入力!B33=\"無\"),\"\",\"まで\")","v":"まで"}]
[null,"支払条件",null,"①","出来高支払",null,null,null,"毎月25日締切り、出来高相当額（税込）の９０％を翌月２０日に支払い。完了の上、残高を支払う。",null,null,null,null,null,null,null,null,null,null,null,null,null,null,null,null,null,null,null,null,null,null,null,null,null,null,null,null,{"$f":"ﾃﾞｰﾀ入力!B27","v":0}]
[null,null,null,null,null,null,null,null,null,null,null,null,null,null,null,null,null,null,null,null,null,null,null,"但し",null,{"$f":"\"現金 \"&+AL23&+\"％　手形 \"&+AM23&\"％　期日現金払\"&+AN23&\"％（サイト \"&ﾃﾞｰﾀ入力!$B$26&\"日）\"","v":"現金 0％　手形 0％　期日現金払0％（サイト 日）"},null,null,null,null,null,null,null,null,null,null,null,{"$f":"ﾃﾞｰﾀ入力!$B$25","v":0},{"$f":"ﾃﾞｰﾀ入力!$B$24","v":0},{"$f":"ﾃﾞｰﾀ入力!$B$23","v":0}]
[null,null,null,"②","納入･完成一括払",null,null,null,"検収月25日締切り、検収相当額の１００％を翌月２０日に全額支払う。",null,null,null,null,null,null,null,null,null,null,null,null,null,null,"但し",null,{"$f":"\"現金 \"&+AL24&+\"％　手形 \"&+AM24&\"％　期日現金払\"&+AN24&\"％（サイト \"&ﾃﾞｰﾀ入力!$B$26&\"日）\"","v":"現金 0％　手形 0％　期日現金払0％（サイト 日）"},null,null,null,null,null,null,null,null,null,null,null,{"$f":"ﾃﾞｰﾀ入力!$B$25","v":0},{"$f":"ﾃﾞｰﾀ入力!$B$24","v":0},{"$f":"ﾃﾞｰﾀ入力!$B$23","v":0}]
[null,null,null,null,"※",null,null,null,"支払いの際に安全協力会費として支払いの０．３％を相殺とし、振込に掛かる手数料は下請負人負担とする。"]
[null,"内容･内訳",null,null,null,"　別紙明細書の通り。",null,null,null,null,null,"特　記\n事　項",null,"注文書・請書に記載のない条件については、個別工事下請契約約款、外注工事特記事項、物品納入特記事項に定めるところによる。　なお、建設工事が、建設工事に係る資材の再資源化等に関する法律に規定する対象建設工事の場合は、①解体工事に要する費用、②再資源化等に要する費用、③分別解体等の方法、④再資源化等をする施設の名称及び所在地についてそれぞれ記入する。"]
[]
[]
[]
[]
[null,null,null,null,null,"外　注　工　事　特　記　事　項",null,null,null,null,null,null,null,null,null,null,null,null,null,null,null,null,null,"外　注　工　事　特　記　事　項"]
[]
[null,null,null,null,null,null,null,"（基　本　事　項）",null,null,null,null,null,null,null,null,null,null,null,null,null,null,null,null,null,"（特　記　事　項）"]
[]
[null,"（総　　則）",null,null,null,null,null,null,null,null,null,null,null,null,null,null,null,null,null,"（適用する品質システム）"]
[null,"１．","①",{"$f":"\"勝井建設株式会社を元請負人、\"&ﾃﾞｰﾀ入力!B14&\"を下請負人とし、元請負人下請負人間における契約工事の特記事項（基本事項）を定める。\"","v":"勝井建設株式会社を元請負人、を下請負人とし、元請負人下請負人間における契約工事の特記事項（基本事項）を定める。"},null,null,null,null,null,null,null,null,null,null,null,null,null,null,null,"１．","本工事では、ISO 9001：2015（品質）、ISO 14001：2015（環境）、ISO 45001：2018（労働安全衛生）に基づいたマネジメントシステム"]
[null,null,null,null,null,null,null,null,null,null,null,null,null,null,null,null,null,null,null,null,"を適用する。"]
[null,null,"②","工事の遂行にあたっては、「個別工事下請契約約款」、「外注工事特記事項」、並びに本特記事項（「外注工事特記事項",null,null,null,null,null,null,null,null,null,null,null,null,null,null,null,"（適用する仕様書、図面等）"]
[null,null,null,"（基本事項）」）によるものとする。",null,null,null,null,null,null,null,null,null,null,null,null,null,null,null,"２．","仕様書　　"]
[null,"（有償支給材）"]
[null,"２．","①","有償支給材に関しては、支給された材料費に相当する出来高を計上する。",null,null,null,null,null,null,null,null,null,null,null,null,null,null,null,null,"図　面　　 　"]
[null,null,"②","有償支給材の支払金額からの控除方法は、",null,null,null,null,null,null,null,null,null,null,null,null,null,null,null,null,null,null,null,null,null,null,null,"その他"]
[null,null,null,"元請負人が現金払いの場合、下請負人の現金払い分から控除し、"]
[null,null,null,"元請負人が手形払いの場合、下請負人の手形払い分から控除するものとする。",null,null,null,null,null,null,null,null,null,null,null,null,null,null,null,"（提出書類）"]
[null,null,null,null,null,null,null,null,null,null,null,null,null,null,null,null,null,null,null,"３．","本工事遂行にあたり、下請負人は元請負人に対し、施工管理及び安全衛生管理に関わる以下の書類内で、元請負人が指示する書類を提出しなければならない。"]
[null,"（作業員宿舎等）",null,null,null,null,null,null,null,null,null,null,null,null,null,null,null,null,null,null,"番　号","書　類　名",null,null,null,null,null,"適　用","記　　　　事"]
[null,"３．","作業員休息所、資材置場及び工事関係会社が共同で使用するものは、下請負人の現場代理人（以下、現場責任者という。）が",null,null,null,null,null,null,null,null,null,null,null,null,null,null,null,null,null,"①","品質管理関連書類（成果表等）"]
[null,null,"責任をもって清掃及び整理整頓し、かつ他の業者とトラブルのないように維持管理を行うこと。",null,null,null,null,null,null,null,null,null,null,null,null,null,null,null,null,null,"②","写真管理関連書類（工事記録写真等）"]
[null,null,null,null,null,null,null,null,null,null,null,null,null,null,null,null,null,null,null,null,"③","出来形管理関連書類（成果表等）"]
[null,"（元請負人との打合わせ）",null,null,null,null,null,null,null,null,null,null,null,null,null,null,null,null,null,null,"④","安全衛生関係書類",null,null,null,null,null,"○"]
[null,"４．","下請負人の現場責任者は、元請負人の担当者と毎日指定された時間に翌日の作業及び安全に関する打合わせを行い、作業員全員に",null,null,null,null,null,null,null,null,null,null,null,null,null,null,null,null,null,"⑤","その他元請負人の指示するもの",null,null,null,null,null,"○"]
[null,null,"周知徹底を図ること、また、定例打合わせ・定例会議等には必ず出席すること。"]
[null,null,null,null,null,null,null,null,null,null,null,null,null,null,null,null,null,null,null,"（発注者からの指示事項）"]
[null,"（安全対策）",null,null,null,null,null,null,null,null,null,null,null,null,null,null,null,null,null,"４．","発注者からの指示事項"]
[null,"５．","（1）下請負人は元請負人の下請負人で組織する安全協議会に加入する。当協議会は労働災害を防止するために各種の活動を行う。"]
[null,null,"　   運営その他は元請負人の定める安全協議会規約に従うものとする。"]
[null,null,"（2）下請負人の現場責任者は、次の事項を実施すること。",null,null,null,null,null,null,null,null,null,null,null,null,null,null,null,null,"（支給品）"]
[null,null,null,"①","朝礼、ラジオ体操。",null,null,null,null,null,null,null,null,null,null,null,null,null,null,"５．","支給品の内容"]
[null,null,null,"②","安全施工サイクル活動（朝礼、KYミーティング、安全点検、作業中の監督・指導、作業打合わせ、一斉清掃、",null,null,null,null,null,null,null,null,null,null,null,null,null,null,null,"品　名",null,null,null,"等級、規格、形式",null,null,null,"単　位","数　量","備　考"]
[null,null,null,null,"終業時の確認、週間一斉片付け、安全衛生協議会、安全大会、職長会、定期点検・自主点検）の実施、記録"]
[null,null,null,null,"及び参加。"]
[null,null,null,"③","作業に先立ち、作業標準の作成、作業員の指導・教育。"]
[null,null,null,"④","現場持ち込み機械、器具の届け出、整備、点検及び記録。"]
[null,null,null,"⑤","その他、元請負人の指示する安全衛生行事。"]
[]
[null,"（就業時間）"]
[null,"６．","作業時間は原則として、８：００～１７：００とし、日曜日、祝日並びに現場で定めた休日を休みとする。",null,null,null,null,null,null,null,null,null,null,null,null,null,null,null,null,"（調達資機材）"]
[null,null,"但し、やむを得ない事情により就業時間、休日を変更する場合、下請負人は元請負人の承認を得なければならない。",null,null,null,null,null,null,null,null,null,null,null,null,null,null,null,null,"６．","下請負人の調達する資機材"]
[null,null,null,null,null,null,null,null,null,null,null,null,null,null,null,null,null,null,null,null,"品　名",null,null,null,"等級、規格、形式",null,null,null,"単　位","数　量","必要書類、検査方法、出荷許可方法"]
[null,"（施工方法及び使用材料）"]
[null,"７．","工事の変更、承認事項について、下請負人の独断で元請負人の施主と直接折衝協議等を行ってはならない。また、施工にかかる全ての"]
[null,null,"計画、実施については、元請負人・下請負人及び関係者を交えて協議する。下請負人の現場責任者との協議により決定した"]
[null,null,"事項については、下請負人の総意とみなし、他の者がみだりに変更してはならない。変更が生じた場合は、改めて元請負人の現場代理人"]
[null,null,"若しくは主任技術者に申し出を行い、再協議を行うこと。"]
[]
[null,"（相殺）"]
[null,"８．","下請工事の契約により、立替金、その他元請負人が下請負人より支払を受けるべき金銭債権が発生した場合、元請負人は、"]
[null,null,"下請負人への請負代金支払の際、これを相殺することができる。"]
[]
[null,"（第42条第1項の三に該当する場合）",null,null,null,null,null,null,null,null,null,null,null,null,null,null,null,null,null,"（リサイクル関係）"]
[null,"９．","個別工事下請契約約款第42条第1項の三とは、次の各号の一に該当する場合を云う。",null,null,null,null,null,null,null,null,null,null,null,null,null,null,null,null,"７．","建設工事に係る資材の再資源化等に関する法律(平成十二年法律第百四号)第九条第一項に規定する対象建設工事の場合"]
[null,null,"①","代表者の住所が不明のとき、または工事を放棄し、もしくは正当の理由がなく工事を休止したとき。",null,null,null,null,null,null,null,null,null,null,null,null,null,null,null,null,"項　目",null,null,null,null,"記　　　　事"]
[null,null,"②","施工または管理が著しく不適当で、元請負人に重大な迷惑を及ぼしたとき、または、及ぼす恐れがあると認められるとき。",null,null,null,null,null,null,null,null,null,null,null,null,null,null,null,null,"①","解体工事に要する費用"]
[null,null,"③","第4条（法令等遵守の義務）に違反し、元請負人が是正を指示・指導しても、なお履行しないとき。",null,null,null,null,null,null,null,null,null,null,null,null,null,null,null,null,"②","再資源化等に要する費用"]
[null,null,"④","支払停止に至ったとき、または下請負人の振出した手形、小切手が不渡となったとき。",null,null,null,null,null,null,null,null,null,null,null,null,null,null,null,null,"③","分別解体等の方法"]
[null,null,"⑤","仮差押、差押、仮処分もしくは競売の申請または破産、民事再生手続開始、会社更生手続開始、会社整理開始もしくは",null,null,null,null,null,null,null,null,null,null,null,null,null,null,null,null,"④","再資源化等をする施設の名称及び所在地"]
[null,null,null,"特別精算開始の各申立または特定調停の申立その他これらに準ずる法的手続きの申立があったときまたは解散したとき。"]
[null,null,"⑥","前5号に掲げる場合のほか、この契約に違反し、その違反により契約の目的を達することができないと認められるとき。",null,null,null,null,null,null,null,null,null,null,null,null,null,null,null,null,null,null,null,null,null,null,null,null,null,null,null,null,null,null,null,null,"<2020.10.02改定>"]

{"sheet":"請書 (変更用)","index":10,"n_rows":88,"n_cols":38,"rows_kept":88,"cut":false,"hidden":false,"merged":[[82,3,82,18],[82,21,82,24],[82,25,82,36],[79,1,79,12],[80,2,80,18],[81,3,81,18],[87,3,87,18],[85,3,85,18],[85,21,85,24],[85,25,85,36],[86,3,86,18],[83,3,83,18],[83,21,83,24],[83,25,83,36],[84,3,84,18],[84,21,84,24],[84,25,84,36],[81,20,81,24],[77,2,77,18],[77,20,77,23],[77,24,77,27],[77,30,77,36],[76,2,76,18],[76,20,76,23],[76,24,76,27],[76,30,76,36],[81,25,81,36],[75,1,75,13],[75,20,75,23],[75,24,75,27],[75,30,75,36],[74,2,74,18],[74,20,74,23],[74,24,74,27],[74,30,74,36],[73,2,73,18],[73,20,73,23],[73,24,73,27],[73,30,73,36],[72,2,72,18],[72,20,72,23],[72,24,72,27],[72,30,72,36],[71,2,71,18],[71,20,71,23],[71,24,71,27],[71,30,71,36],[70,2,70,18],[70,20,70,23],[70,24,70,27],[70,30,70,36],[68,20,68,23],[68,24,68,27],[68,30,68,36],[69,1,69,15],[69,20,69,23],[69,24,69,27],[69,30,69,36],[66,2,66,18],[66,19,66,27],[67,2,67,18],[67,20,67,29],[64,20,64,23],[64,24,64,27],[64,30,64,36],[65,1,65,12],[63,4,63,18],[63,20,63,23],[63,24,63,27],[63,30,63,36],[62,4,62,18],[62,20,62,23],[62,24,62,27],[62,30,62,36],[61,4,61,18],[61,20,61,23],[61,24,61,27],[61,30,61,36],[60,4,60,18],[60,20,60,23],[60,24,60,27],[60,30,60,36],[59,4,59,18],[59,20,59,23],[59,24,59,27],[59,30,59,36],[58,4,58,18],[58,20,58,23],[58,24,58,27],[58,30,58,36],[55,2,55,18],[56,2,56,18],[56,19,56,27],[57,4,57,18],[57,20,57,29],[52,19,52,30],[53,1,53,11],[53,20,53,35],[54,2,54,18],[54,20,54,35],[50,2,50,18],[50,21,50,26],[50,28,50,35],[51,2,51,18],[48,21,48,26],[48,28,48,35],[49,1,49,10],[49,21,49,26],[49,28,49,35],[46,2,46,18],[46,21,46,26],[46,28,46,35],[47,2,47,18],[47,21,47,26],[47,28,47,35],[45,1,45,16],[45,21,45,26],[45,28,45,35],[44,20,44,36],[41,3,41,18],[42,3,42,18],[43,3,43,18],[43,19,43,28],[42,20,42,26],[41,20,41,26],[41,28,41,34],[39,1,39,18],[39,20,39,36],[40,3,40,18],[40,20,40,36],[37,3,37,18],[37,19,37,28],[38,20,38,36],[38,3,38,10],[34,1,34,18],[34,19,34,28],[35,20,35,36],[35,3,36,18],[36,20,36,21],[30,5,31,13],[30,23,31,32],[32,7,32,11],[32,25,32,30],[25,1,26,4],[21,1,24,2],[21,3,22,3],[24,4,24,7],[23,4,23,7],[21,4,22,7],[25,11,26,12],[25,13,26,36],[22,23,22,24],[23,25,23,36],[22,25,22,36],[23,23,23,24],[16,25,16,36],[17,25,17,36],[17,1,17,4],[17,5,18,17],[18,1,18,4],[18,18,18,23],[18,24,18,27],[18,28,18,32],[18,33,18,36],[20,32,20,33],[15,1,15,4],[15,5,15,17],[15,18,15,23],[15,24,15,36],[14,1,14,8],[14,29,14,32],[14,35,14,36],[14,33,14,34],[19,24,19,25],[19,26,19,27],[19,28,19,30],[19,31,19,32],[19,33,19,36],[20,1,20,4],[20,5,20,17],[20,18,20,23],[16,1,16,4],[16,5,16,17],[19,1,19,4],[19,5,19,17],[19,18,19,23],[20,24,20,31],[16,18,17,23],[7,33,7,36],[8,1,8,3],[8,4,8,13],[12,11,12,26],[10,30,11,31],[10,34,11,35],[6,1,6,3],[6,4,6,13],[1,29,1,36],[2,1,2,36],[3,33,3,36],[4,1,4,13],[4,33,4,36],[4,14,4,15],[1,2,1,11]]}
[]
[null,null,{"$f":"'注文書 (変更用)'!C3:L3","v":"変更契約"}]
[null,"請　　　　　　　　書"]
[null,null,null,null,null,null,null,null,null,null,null,null,null,null,null,null,null,null,null,null,null,null,null,null,null,null,null,null,null,null,null,null,null,"確認、承認"]
[null,"勝井建設株式会社",null,null,null,null,null,null,null,null,null,null,null,null,"御中",null,null,null,null,null,null,null,null,null,null,null,null,null,null,null,null,null,null,"総務部長"]
[]
[null,"住 所"]
[null,null,null,null,null,null,null,null,null,null,null,null,null,null,null,null,null,null,null,null,null,null,null,null,null,null,null,null,null,null,null,null,null,"．　　．"]
[null,"会 社 名"]
[]
[null,null,null,null,null,null,null,null,null,null,null,null,null,null,null,null,null,null,null,null,null,null,null,null,null,null,null,null,null,null,"印紙",null,null,null,"印紙"]
[]
[null,null,null,null,null,null,null,null,null,null,null,"下記の通りお請けします。"]
[]
["日付入力→",{"$f":"'注文書 (変更用)'!AF6","v":"00:00:00"}]
[null,"工事名称",null,null,null,{"$f":"注文書!F15","v":0},null,null,null,null,null,null,null,null,null,null,null,null,"現場名",null,null,null,null,null,{"$f":"注文書!Y15","v":0}]
[null,"工事場所",null,null,null,{"$f":"注文書!F16","v":0},null,null,null,null,null,null,null,null,null,null,null,null,"工期",null,null,null,null,null,"自",{"$f":"ﾃﾞｰﾀ入力!B11","v":"00:00:00"}]
[null,"工事種別",null,null,null,{"$f":"注文書!F17","v":"00:00:00"},null,null,null,null,null,null,null,null,null,null,null,null,null,null,null,null,null,null,"至",{"$f":"ﾃﾞｰﾀ入力!B12","v":"00:00:00"}]
[null,"又は物品名",null,null,null,null,null,null,null,null,null,null,null,null,null,null,null,null,"受　渡　条　件",null,null,null,null,null,{"$f":"注文書!Y18","v":"施　　　工"},null,null,null,"精　算　条　件",null,null,null,null,{"$f":"注文書!AH18","v":"実　　　測"}]
[null,"金　　　　　額",null,null,null,{"$f":"'注文書 (変更用)'!F20:R20","v":"￥０ －　　"},null,null,null,null,null,null,null,null,null,null,null,null,"工事を施工しない日・時間帯の定め",null,null,null,null,null,{"$f":"注文書!Y19","v":""},null,"日",null,{"$f":"注文書!AC19","v":""},null,null,"時間帯",null,{"$f":"注文書!AH19","v":""}]
[null,"（消費税額）",null,null,null,{"$f":"'注文書 (変更用)'!F21:R21","v":"（内消費税￥０ －　）　　"},null,null,null,null,null,null,null,null,null,null,null,null,"契約不適合責任期間",null,null,null,null,null,{"$f":"注文書!Y20","v":"00:00:00"},null,null,null,null,null,null,null,{"$f":"'注文書 (変更用)'!AG21:AH21","v":"まで"}]
[null,"支払条件",null,"①","出来高支払",null,null,null,"毎月25日締切り、出来高相当額（税込）の９０％を翌月２０日に支払い。完了の上、残高を支払う。",null,null,null,null,null,null,null,null,null,null,null,null,null,null,null,null,null,null,null,null,null,null,null,null,null,null,null,null,{"$f":"ﾃﾞｰﾀ入力!B27","v":0}]
[null,null,null,null,null,null,null,null,null,null,null,null,null,null,null,null,null,null,null,null,null,null,null,"但し",null,{"$f":"'注文書 (変更用)'!Z23:AK23","v":"現金 0％　手形 0％　期日現金払0％（サイト 日）"}]
[null,null,null,"②","納入･完成一括払",null,null,null,"検収月25日締切り、検収相当額の１００％を翌月２０日に全額支払う。",null,null,null,null,null,null,null,null,null,null,null,null,null,null,"但し",null,{"$f":"'注文書 (変更用)'!Z24:AK24","v":"現金 0％　手形 0％　期日現金払0％（サイト 日）"}]
[null,null,null,null,"※",null,null,null,"支払いの際に安全協力会費として支払いの０．３％を相殺とし、振込に掛かる手数料は下請負人負担とする。"]
[null,"内容･内訳",null,null,null,"　別紙明細書の通り。",null,null,null,null,null,"特　記\n事　項",null,{"$f":"'注文書 (変更用)'!N26:AK27","v":"注文書・請書に記載のない条件については、個別工事下請契約約款、外注工事特記事項、物品納入特記事項に定めるところによる。　なお、建設工事が、建設工事に係る資材の再資源化等に関する法律に規定する対象建設工事の場合は、①解体工事に要する費用、②再資源化等に要する費用、③分別解体等の方法、④再資源化等をする施設の名称及び所在地についてそれぞれ記入する。"}]
[]
[]
[]
[]
[null,null,null,null,null,"外　注　工　事　特　記　事　項",null,null,null,null,null,null,null,null,null,null,null,null,null,null,null,null,null,"外　注　工　事　特　記　事　項"]
[]
[null,null,null,null,null,null,null,"（基　本　事　項）",null,null,null,null,null,null,null,null,null,null,null,null,null,null,null,null,null,"（特　記　事　項）"]
[]
[null,"（総　　則）",null,null,null,null,null,null,null,null,null,null,null,null,null,null,null,null,null,"（適用する品質システム）"]
[null,"１．","①",{"$f":"\"勝井建設株式会社を元請負人、\"&ﾃﾞｰﾀ入力!B14&\"を下請負人とし、元請負人下請負人間における契約工事の特記事項（基本事項）を定める。\"","v":"勝井建設株式会社を元請負人、を下請負人とし、元請負人下請負人間における契約工事の特記事項（基本事項）を定める。"},null,null,null,null,null,null,null,null,null,null,null,null,null,null,null,"１．","本工事では、ISO 9001：2015（品質）、ISO 14001：2015（環境）、ISO 45001：2018（労働安全衛生）に基づいたマネジメントシステム"]
[null,null,null,null,null,null,null,null,null,null,null,null,null,null,null,null,null,null,null,null,"を適用する。"]
[null,null,"②","工事の遂行にあたっては、「個別工事下請契約約款」、「外注工事特記事項」、並びに本特記事項（「外注工事特記事項",null,null,null,null,null,null,null,null,null,null,null,null,null,null,null,"（適用する仕様書、図面等）"]
[null,null,null,"（基本事項）」）によるものとする。",null,null,null,null,null,null,null,null,null,null,null,null,null,null,null,"２．","仕様書　　"]
[null,"（有償支給材）"]
[null,"２．","①","有償支給材に関しては、支給された材料費に相当する出来高を計上する。",null,null,null,null,null,null,null,null,null,null,null,null,null,null,null,null,"図　面　　 　"]
[null,null,"②","有償支給材の支払金額からの控除方法は、",null,null,null,null,null,null,null,null,null,null,null,null,null,null,null,null,null,null,null,null,null,null,null,"その他"]
[null,null,null,"元請負人が現金払いの場合、下請負人の現金払い分から控除し、"]
[null,null,null,"元請負人が手形払いの場合、下請負人の手形払い分から控除するものとする。",null,null,null,null,null,null,null,null,null,null,null,null,null,null,null,"（提出書類）"]
[null,null,null,null,null,null,null,null,null,null,null,null,null,null,null,null,null,null,null,"３．","本工事遂行にあたり、下請負人は元請負人に対し、施工管理及び安全衛生管理に関わる以下の書類内で、元請負人が指示する書類を提出しなければならない。"]
[null,"（作業員宿舎等）",null,null,null,null,null,null,null,null,null,null,null,null,null,null,null,null,null,null,"番　号","書　類　名",null,null,null,null,null,"適　用","記　　　　事"]
[null,"３．","作業員休息所、資材置場及び工事関係会社が共同で使用するものは、下請負人の現場代理人（以下、現場責任者という。）が",null,null,null,null,null,null,null,null,null,null,null,null,null,null,null,null,null,"①","品質管理関連書類（成果表等）"]
[null,null,"責任をもって清掃及び整理整頓し、かつ他の業者とトラブルのないように維持管理を行うこと。",null,null,null,null,null,null,null,null,null,null,null,null,null,null,null,null,null,"②","写真管理関連書類（工事記録写真等）"]
[null,null,null,null,null,null,null,null,null,null,null,null,null,null,null,null,null,null,null,null,"③","出来形管理関連書類（成果表等）"]
[null,"（元請負人との打合わせ）",null,null,null,null,null,null,null,null,null,null,null,null,null,null,null,null,null,null,"④","安全衛生関係書類",null,null,null,null,null,"○"]
[null,"４．","下請負人の現場責任者は、元請負人の担当者と毎日指定された時間に翌日の作業及び安全に関する打合わせを行い、作業員全員に",null,null,null,null,null,null,null,null,null,null,null,null,null,null,null,null,null,"⑤","その他元請負人の指示するもの",null,null,null,null,null,"○"]
[null,null,"周知徹底を図ること、また、定例打合わせ・定例会議等には必ず出席すること。"]
[null,null,null,null,null,null,null,null,null,null,null,null,null,null,null,null,null,null,null,"（発注者からの指示事項）"]
[null,"（安全対策）",null,null,null,null,null,null,null,null,null,null,null,null,null,null,null,null,null,"４．","発注者からの指示事項"]
[null,"５．","（1）下請負人は元請負人の下請負人で組織する安全協議会に加入する。当協議会は労働災害を防止するために各種の活動を行う。"]
[null,null,"　   運営その他は元請負人の定める安全協議会規約に従うものとする。"]
[null,null,"（2）下請負人の現場責任者は、次の事項を実施すること。",null,null,null,null,null,null,null,null,null,null,null,null,null,null,null,null,"（支給品）"]
[null,null,null,"①","朝礼、ラジオ体操。",null,null,null,null,null,null,null,null,null,null,null,null,null,null,"５．","支給品の内容"]
[null,null,null,"②","安全施工サイクル活動（朝礼、KYミーティング、安全点検、作業中の監督・指導、作業打合わせ、一斉清掃、",null,null,null,null,null,null,null,null,null,null,null,null,null,null,null,"品　名",null,null,null,"等級、規格、形式",null,null,null,"単　位","数　量","備　考"]
[null,null,null,null,"終業時の確認、週間一斉片付け、安全衛生協議会、安全大会、職長会、定期点検・自主点検）の実施、記録"]
[null,null,null,null,"及び参加。"]
[null,null,null,"③","作業に先立ち、作業標準の作成、作業員の指導・教育。"]
[null,null,null,"④","現場持ち込み機械、器具の届け出、整備、点検及び記録。"]
[null,null,null,"⑤","その他、元請負人の指示する安全衛生行事。"]
[]
[null,"（就業時間）"]
[null,"６．","作業時間は原則として、８：００～１７：００とし、日曜日、祝日並びに現場で定めた休日を休みとする。",null,null,null,null,null,null,null,null,null,null,null,null,null,null,null,null,"（調達資機材）"]
[null,null,"但し、やむを得ない事情により就業時間、休日を変更する場合、下請負人は元請負人の承認を得なければならない。",null,null,null,null,null,null,null,null,null,null,null,null,null,null,null,null,"６．","下請負人の調達する資機材"]
[null,null,null,null,null,null,null,null,null,null,null,null,null,null,null,null,null,null,null,null,"品　名",null,null,null,"等級、規格、形式",null,null,null,"単　位","数　量","必要書類、検査方法、出荷許可方法"]
[null,"（施工方法及び使用材料）"]
[null,"７．","工事の変更、承認事項について、下請負人の独断で元請負人の施主と直接折衝協議等を行ってはならない。また、施工にかかる全ての"]
[null,null,"計画、実施については、元請負人・下請負人及び関係者を交えて協議する。下請負人の現場責任者との協議により決定した"]
[null,null,"事項については、下請負人の総意とみなし、他の者がみだりに変更してはならない。変更が生じた場合は、改めて元請負人の現場代理人"]
[null,null,"若しくは主任技術者に申し出を行い、再協議を行うこと。"]
[]
[null,"（相殺）"]
[null,"８．","下請工事の契約により、立替金、その他元請負人が下請負人より支払を受けるべき金銭債権が発生した場合、元請負人は、"]
[null,null,"下請負人への請負代金支払の際、これを相殺することができる。"]
[]
[null,"（第42条第1項の三に該当する場合）",null,null,null,null,null,null,null,null,null,null,null,null,null,null,null,null,null,"（リサイクル関係）"]
[null,"９．","個別工事下請契約約款第42条第1項の三とは、次の各号の一に該当する場合を云う。",null,null,null,null,null,null,null,null,null,null,null,null,null,null,null,null,"７．","建設工事に係る資材の再資源化等に関する法律(平成十二年法律第百四号)第九条第一項に規定する対象建設工事の場合"]
[null,null,"①","代表者の住所が不明のとき、または工事を放棄し、もしくは正当の理由がなく工事を休止したとき。",null,null,null,null,null,null,null,null,null,null,null,null,null,null,null,null,"項　目",null,null,null,null,"記　　　　事"]
[null,null,"②","施工または管理が著しく不適当で、元請負人に重大な迷惑を及ぼしたとき、または、及ぼす恐れがあると認められるとき。",null,null,null,null,null,null,null,null,null,null,null,null,null,null,null,null,"①","解体工事に要する費用"]
[null,null,"③","第4条（法令等遵守の義務）に違反し、元請負人が是正を指示・指導しても、なお履行しないとき。",null,null,null,null,null,null,null,null,null,null,null,null,null,null,null,null,"②","再資源化等に要する費用"]
[null,null,"④","支払停止に至ったとき、または下請負人の振出した手形、小切手が不渡となったとき。",null,null,null,null,null,null,null,null,null,null,null,null,null,null,null,null,"③","分別解体等の方法"]
[null,null,"⑤","仮差押、差押、仮処分もしくは競売の申請または破産、民事再生手続開始、会社更生手続開始、会社整理開始もしくは",null,null,null,null,null,null,null,null,null,null,null,null,null,null,null,null,"④","再資源化等をする施設の名称及び所在地"]
[null,null,null,"特別精算開始の各申立または特定調停の申立その他これらに準ずる法的手続きの申立があったときまたは解散したとき。"]
[null,null,"⑥","前5号に掲げる場合のほか、この契約に違反し、その違反により契約の目的を達することができないと認められるとき。",null,null,null,null,null,null,null,null,null,null,null,null,null,null,null,null,null,null,null,null,null,null,null,null,null,null,null,null,null,null,null,null,"<2020.10.02改定>"]